Name,Sub Group,Service Area,Expense Type,Narrative ,Date,Transaction Number,Amount,Supplier Name,Supplier Ref,Period,Year
Allerdale Borough Council,14101,Transport,Shared IT Services Pay Group,Vehicle Leasing,12/05/2014,130067,199.00,ARNOLD CLARK AUTOMOBILES LTD,A01551,2,2015
Allerdale Borough Council,16101,Supplies & Services,Planning and Development,Statutory Notices,23/04/2015,130068,214.66,CUMBRIA CC - 3C STUDIO,A00070,2,2015
Allerdale Borough Council,16101,Supplies & Services,Planning and Development,Statutory Notices,23/04/2015,130069,321.87,CUMBRIA CC - 3C STUDIO,A00070,2,2015
Allerdale Borough Council,16350,Supplies & Services,Chief Executive,Miscellaneous Expenses,15/04/2015,130070,121.23,BARCLAYCARD COMMERCIAL,X00207,2,2015
Allerdale Borough Council,54105,Capital Expenditure,Disabled Facilities Grants,Grants  Private Individuals (Capital),29/04/2015,130071,935.00,THYSSEN KRUPP ENCASA A DIVISION OF THYSSENKRUPP LIMITED,X00105,2,2015
Allerdale Borough Council,54105,Capital Expenditure,Disabled Facilities Grants,Grants  Private Individuals (Capital),30/04/2015,130072,"5,600.00",DOLPHIN STAIRLIFTS CUMBRIA,X00107,2,2015
Allerdale Borough Council,54105,Capital Expenditure,Disabled Facilities Grants,Grants  Private Individuals (Capital),30/04/2015,130073,"2,665.86",JACOBS STOBBARTS LIMITED,C00139,2,2015
Allerdale Borough Council,15500,Supplies & Services,Estates,Budget-Services,01/05/2015,130074,480.00,BRABNERS LLP CLIENT ACCOUNT,M00738,2,2015
Allerdale Borough Council,16301,Supplies & Services,KMAG Enhancement Activity,Reimbursement,15/04/2015,130075,"1,122.00",KESWICK MUSEUM & ART GALLERY,A00337,2,2015
Allerdale Borough Council,15301,Supplies & Services,Parking Services Pay Group,Uniforms,20/04/2015,130076,102.70,KELTIC,A00017,2,2015
Allerdale Borough Council,15808,Supplies & Services,IT Services,Computer Consumables,09/04/2015,130077,134.96,MISCO,A00125,2,2015
Allerdale Borough Council,15803,Supplies & Services,IT Services,Hardware Purchase,17/03/2015,130078,185.79,MISCO,A00125,2,2015
Allerdale Borough Council,15803,Supplies & Services,IT Services,Hardware Purchase,26/03/2015,130079,351.60,MISCO,A00125,2,2015
Allerdale Borough Council,15808,Supplies & Services,IT Services,Computer Consumables,08/04/2015,130080,225.27,MISCO,A00125,2,2015
Allerdale Borough Council,15103,Supplies & Services,Environmental Protection,Purchase of Materials,20/04/2015,130081,46.90,KILLGERM CHEMICALS LTD,A00361,2,2015
Allerdale Borough Council,10250,Employee Costs,Human Resources Pay Group,General-Employee Related Expenses,22/04/2015,130082,23.00,COPELAND BOROUGH COUNCIL,A00589,2,2015
Allerdale Borough Council,15101,Supplies & Services,Recycling,Equipment Costs,20/04/2015,130083,"6,240.00",CRAEMER UK LTD,A01016,2,2015
Allerdale Borough Council,15101,Supplies & Services,Public Building Cleaning,Equipment Costs,21/04/2015,130084,112.68,WF HYGIENE & CLEANING SUPPLIES,A01794,2,2015
Allerdale Borough Council,20111,Third Party Payments,Community Safety,Voluntary Organisations,26/03/2015,130085,"6,058.00",THE POLICE & CRIME COMMISSIONER FOR CUMBRIA,M00443,2,2015
Allerdale Borough Council,15601,Supplies & Services,Benefits,Postage,16/04/2015,130086,"1,475.05",ROYAL MAIL LETTERS,X00021,2,2015
Allerdale Borough Council,15704,Supplies & Services,IT Services,Mobile Phones,22/04/2015,130087,"1,094.73",VODAFONE,A00551,2,2015
Allerdale Borough Council,12403,Premises,Corporate Property Maintenance,Gas,24/04/2015,130088,443.59,BRITISH GAS,X00039,2,2015
Allerdale Borough Council,20150,Third Party Payments,Managed Car Parks,General Partnership Service Fees,24/04/2015,130089,"6,488.18",MARYPORT HARBOUR & MARINA LIMITED (PREV MARYPORT DEVELOP),A00186,2,2015
Allerdale Borough Council,12405,Premises,Off-street - Owned,Rentals and Lease Charges,30/03/2015,130090,"4,000.00",KESWICK RUGBY FOOTBALL CLUB LTD,X00117,2,2015
Allerdale Borough Council,54105,Capital Expenditure,Disabled Facilities Grants,Grants  Private Individuals (Capital),06/05/2015,130105,950.00,CONISTON CONSULTANTS LTD,X00210,2,2015
Allerdale Borough Council,54105,Capital Expenditure,Disabled Facilities Grants,Grants  Private Individuals (Capital),06/05/2015,130106,"5,595.00",DOLPHIN STAIRLIFTS CUMBRIA,X00107,2,2015
Allerdale Borough Council,15810,Supplies & Services,Carnegie Theatre,Software Licences,31/03/2015,130107,24.60,TICKETS.COM LIMITED,A00371,2,2015
Allerdale Borough Council,15810,Supplies & Services,Carnegie Theatre,Software Licences,08/04/2015,130108,32.80,TICKETS.COM LIMITED,A00371,2,2015
Allerdale Borough Council,15810,Supplies & Services,Carnegie Theatre,Software Licences,15/04/2015,130109,26.24,TICKETS.COM LIMITED,A00371,2,2015
Allerdale Borough Council,15103,Supplies & Services,KMAG Enhancement Activity,Purchase of Materials,17/04/2015,130110,219.86,YORKSHIRE PURCHASING ORGANISATION,A00747,2,2015
Allerdale Borough Council,12302,Premises,Solway Coast AONB Core Funding,Building Cleaning,31/03/2015,130111,105.50,ORIAN SOLUTIONS LTD,A01814,2,2015
Allerdale Borough Council,10401,Employee Costs,Elections,Agency Staff Costs,13/04/2015,130112,"12,192.20",ASSOCIATION OF ELECTORAL ADMIN,A00189,2,2015
Allerdale Borough Council,12305,Premises,Corporate Property Maintenance,Inspections and Services,19/04/2015,130113,"1,478.00",REFRIGERATION (MITTON) LTD,C00012,2,2015
Allerdale Borough Council,15810,Supplies & Services,Carnegie Theatre,Software Licences,22/04/2015,130114,36.08,TICKETS.COM LIMITED,A00371,2,2015
Allerdale Borough Council,15514,Supplies & Services,Carnegie Theatre,Public Entertainment,28/04/2015,130115,"2,479.32",ENTERTAINERS,A02182,2,2015
Allerdale Borough Council,15202,Supplies & Services,Carnegie Theatre,Bar Provision,23/04/2015,130116,847.46,CLASSIC DRINKS LIMITED,A00413,2,2015
Allerdale Borough Council,12401,Premises,Corporate Property Maintenance,Energy Management Charges,27/04/2015,130117,"1,921.00",SCHNEIDER ELECTRIC LTD,A00859,2,2015
Allerdale Borough Council,15501,Supplies & Services,Customer & Transformation Programme,Consultants Fees,16/04/2015,130118,85.95,NORTH EAST REGIONAL EMP ORG,A01621,2,2015
Allerdale Borough Council,15501,Supplies & Services,Homelessness,Consultants Fees,22/04/2015,130119,25.15,BRUNSWICK HOUSE MEDICAL GROUP,A02185,2,2015
Allerdale Borough Council,16100,Supplies & Services,Building Control - Chargeable,Budget-Advertising and Promotions,27/04/2015,130120,210.00,LABC DISTRICT SURVEYORS ASSOCIATION,A00308,2,2015
Allerdale Borough Council,73102,Holding and Control Accounts,Busy Bees Childcare Scheme,Holding Accounts General - Expenditure,05/05/2015,130121,77.22,COMPUTERSHARE VOUCHER SERVICES,A00991,2,2015
Allerdale Borough Council,73102,Holding and Control Accounts,Busy Bees Childcare Scheme,Holding Accounts General - Expenditure,05/05/2015,130122,"1,404.00",COMPUTERSHARE VOUCHER SERVICES,A00991,2,2015
Allerdale Borough Council,14200,Transport,Members Services,Budget-Travel,05/05/2015,130123,160.00,KEN ROUTLEDGE TRAVEL LTD,A00192,2,2015
Allerdale Borough Council,15501,Supplies & Services,Homelessness,Consultants Fees,27/04/2015,130124,40.00,OXFORD STREET SURGERY,A00418,2,2015
Allerdale Borough Council,15302,Supplies & Services,Building Control - Chargeable,Protective Clothing,30/04/2015,130125,121.41,THOMAS GRAHAM & SONS (IRON & STEEL) LTD,A02171,2,2015
Allerdale Borough Council,12101,Premises,Carnegie Trust Contribution,External Maintenance & Decoration,01/04/2015,130126,180.00,UNBLOCK CUMBRIA LTD,C00005,2,2015
Allerdale Borough Council,12309,Premises,Carnegie Trust Contribution,Fire and Safety,27/04/2015,130127,395.50,ORIAN SOLUTIONS LTD,A01814,2,2015
Allerdale Borough Council,14200,Transport,Members Services,Budget-Travel,14/04/2015,130128,90.00,KEN ROUTLEDGE TRAVEL LTD,A00192,2,2015
Allerdale Borough Council,14202,Transport,Members Services,Hire Car and petrol,24/03/2015,130129,130.00,KEN ROUTLEDGE TRAVEL LTD,A00192,2,2015
Allerdale Borough Council,14200,Transport,Members Services,Budget-Travel,10/02/2015,130130,120.00,KEN ROUTLEDGE TRAVEL LTD,A00192,2,2015
Allerdale Borough Council,16102,Supplies & Services,Markets Service Development,Regeneration Initiatives,20/03/2015,130131,280.00,POD (NORTH WEST) LIMITED,A01977,2,2015
Allerdale Borough Council,15506,Supplies & Services,Finance and Accounting Pay Group,Professional Services,20/03/2015,130132,"5,895.00",BAKER TILLY TAX AND ACCOUNTING LIMITED,A02015,2,2015
Allerdale Borough Council,15501,Supplies & Services,Building Control - Non-Chargeable,Consultants Fees,23/03/2015,130134,252.62,CUMBRIA CC - GENERAL,A00066,2,2015
Allerdale Borough Council,15550,Supplies & Services,Licensing Service,General-Service Related Fees,27/03/2015,130135,72.00,ORBIS PROTECT LTD (PREV SITEXORBIS LIMITED),A00679,2,2015
Allerdale Borough Council,15303,Supplies & Services,Food and Occupational Health,Laundry,25/04/2015,130136,87.50,BERENDSEN UK LTD,A00027,2,2015
Allerdale Borough Council,15506,Supplies & Services,Food and Occupational Health,Professional Services,21/04/2015,130137,235.00,MP MARINE LTD,A00113,2,2015
Allerdale Borough Council,16003,Supplies & Services,Customer Services Pay Group,Security of Cash Movements,01/05/2015,130138,448.17,SECURITY PLUS LIMITED,A00503,2,2015
Allerdale Borough Council,15506,Supplies & Services,Food and Occupational Health,Professional Services,02/04/2015,130139,112.77,PUBLIC HEALTH ENGLAND,A01839,2,2015
Allerdale Borough Council,15506,Supplies & Services,Asset Mgt & Capital Accounting System,Professional Services,31/03/2015,130140,650.00,BURNETTS SOLICITORS,A00129,2,2015
Allerdale Borough Council,12307,Premises,Corporate Property Maintenance,Fixtures and Fittings,24/04/2015,130141,190.00,SHERIDAN LIFTS LIMITED,C00120,2,2015
Allerdale Borough Council,10250,Employee Costs,Estates,General-Employee Related Expenses,28/04/2015,130142,120.00,RICS,A00373,2,2015
Allerdale Borough Council,12101,Premises,Corporate Property Maintenance,External Maintenance & Decoration,21/04/2015,130143,"1,875.00",BORDER ROAD MARKINGS LTD,C00064,2,2015
Allerdale Borough Council,15102,Supplies & Services,Domestic Waste,Equipment Repair & Maintenance,29/04/2015,130144,659.60,Redacted information - included personal information ,A00176,2,2015
Allerdale Borough Council,15802,Supplies & Services,IT Services,Hardware Maintenance,28/04/2015,130145,"3,047.44",INTRINSIC TECHNOLOGY LTD,A00902,2,2015
Allerdale Borough Council,15101,Supplies & Services,Street Cleansing,Equipment Costs,30/04/2015,130146,"2,000.00",PMC POLYTHENE LTD,A00194,2,2015
Allerdale Borough Council,12101,Premises,Corporate Property Maintenance,External Maintenance & Decoration,28/04/2015,130147,150.00,J DUFFY LTD T/A PW CONF BUS SERVICES,A01846,2,2015
Allerdale Borough Council,12408,Premises,Corporate Property Maintenance,Water & Sewage,23/04/2015,130148,190.00,AMEY METERING LIMITED,A01503,2,2015
Allerdale Borough Council,15802,Supplies & Services,Shared ICT Costs,Hardware Maintenance,28/04/2015,130149,"3,407.60",INTRINSIC TECHNOLOGY LTD,A00902,2,2015
Allerdale Borough Council,15508,Supplies & Services,Industrial Communities Alliance,Subscriptions,29/04/2015,130150,"3,250.00",BARNSLEY MBC - THE ALLIANCE,A00613,2,2015
Allerdale Borough Council,10601,Employee Costs,Chief Executive,External Courses & Seminar Fees,07/04/2015,130151,"1,980.00",LOCAL GOVERNMENT ASSOCIATION,A00686,2,2015
Allerdale Borough Council,12100,Premises,Environmental Initiatives,Budget-External Maintenance & Decoration,24/04/2015,130152,833.80,RENTOKIL INITIAL UK LTD,A00459,2,2015
Allerdale Borough Council,15101,Supplies & Services,Recycling,Equipment Costs,24/04/2015,130153,885.57,BPI RECYCLED PRODUCTS,A00318,2,2015
Allerdale Borough Council,15401,Supplies & Services,Document Management Pay Group,General Stationery,30/04/2015,130154,147.50,LYRECO,A00043,2,2015
Allerdale Borough Council,15401,Supplies & Services,Document Management Pay Group,General Stationery,30/04/2015,130155,112.59,LYRECO,A00043,2,2015
Allerdale Borough Council,15401,Supplies & Services,Document Management Pay Group,General Stationery,30/04/2015,130156,104.49,LYRECO,A00043,2,2015
Allerdale Borough Council,15401,Supplies & Services,Document Management Pay Group,General Stationery,30/04/2015,130157,115.33,LYRECO,A00043,2,2015
Allerdale Borough Council,15401,Supplies & Services,Document Management Pay Group,General Stationery,30/04/2015,130158,119.40,LYRECO,A00043,2,2015
Allerdale Borough Council,15808,Supplies & Services,Multi-functional Printers,Computer Consumables,24/04/2015,130159,199.00,ANTALIS LIMITED,A00122,2,2015
Allerdale Borough Council,15803,Supplies & Services,IT Services,Hardware Purchase,01/05/2015,130160,188.35,PROBRAND,A00040,2,2015
Allerdale Borough Council,14104,Transport,Public Convenience Cleaning,Repairs & Maintenance,28/04/2015,130161,107.41,GOODFELLOW & SONS,A00031,2,2015
Allerdale Borough Council,99900,Suspense Acc,9599,Budget - SUSPENSE,12/05/2015,130162,65.00,Redacted information - included personal information ,R00011,2,2015
Allerdale Borough Council,99900,Suspense Acc,9599,Budget - SUSPENSE,12/05/2015,130163,6.37,Redacted information - included personal information ,R00011,2,2015
Allerdale Borough Council,99900,Suspense Acc,9599,Budget - SUSPENSE,12/05/2015,130164,65.00,Redacted information - included personal information ,R00011,2,2015
Allerdale Borough Council,99900,Suspense Acc,9599,Budget - SUSPENSE,12/05/2015,130165,58.63,Redacted information - included personal information ,R00011,2,2015
Allerdale Borough Council,99900,Suspense Acc,9599,Budget - SUSPENSE,12/05/2015,130166,65.00,Redacted information - included personal information ,R00011,2,2015
Allerdale Borough Council,16350,Supplies & Services,Director of Resources & PA,Miscellaneous Expenses,08/04/2015,130167,10.55,K&R BADGES LIMITED,A01328,2,2015
Allerdale Borough Council,10100,Employee Costs,Customer Services Pay Group,Budget-Salaries,22/04/2015,130168,483.22,ADECCO RECRUITMENT,A00188,2,2015
Allerdale Borough Council,15501,Supplies & Services,Planning and Development,Consultants Fees,22/04/2015,130169,"3,600.00",KINGS CHAMBERS,A00348,2,2015
Allerdale Borough Council,15507,Supplies & Services,Land Charges Service,Searches,23/04/2015,130170,"1,878.40",CUMBRIA CC - GENERAL,A00066,2,2015
Allerdale Borough Council,16101,Supplies & Services,Planning and Development,Statutory Notices,23/04/2015,130171,385.02,CUMBRIA CC - 3C STUDIO,A00070,2,2015
Allerdale Borough Council,14101,Transport,Homelessness,Vehicle Leasing,01/05/2015,130172,171.74,DOBIES VAUXHALL,A00254,2,2015
Allerdale Borough Council,16300,Supplies & Services,IT Services,Budget-Miscellaneous,30/03/2015,130173,"1,413.07",HALAROSE LIMITED,A00012,2,2015
Allerdale Borough Council,12309,Premises,Corporate Property Maintenance,Fire and Safety,27/04/2015,130174,117.10,ORIAN SOLUTIONS LTD,A01814,2,2015
Allerdale Borough Council,12309,Premises,Corporate Property Maintenance,Fire and Safety,27/04/2015,130175,152.10,ORIAN SOLUTIONS LTD,A01814,2,2015
Allerdale Borough Council,12103,Premises,Coastal Protection and Inland Flooding,Grounds Maintenance,29/04/2015,130176,653.25,WYG ENGINEERING LTD,A00155,2,2015
Allerdale Borough Council,15501,Supplies & Services,IT - New Initiatives,Consultants Fees,30/04/2015,130177,800.00,TOTALMOBILE LIMITED,A01712,2,2015
Allerdale Borough Council,10401,Employee Costs,Head of Governance,Agency Staff Costs,16/04/2015,130178,127.06,VENN GROUP,A01836,2,2015
Allerdale Borough Council,10401,Employee Costs,Head of Governance,Agency Staff Costs,16/04/2015,130179,118.00,VENN GROUP,A01836,2,2015
Allerdale Borough Council,10401,Employee Costs,Head of Governance,Agency Staff Costs,16/04/2015,130180,93.60,VENN GROUP,A01836,2,2015
Allerdale Borough Council,10401,Employee Costs,Head of Governance,Agency Staff Costs,16/04/2015,130181,71.18,VENN GROUP,A01836,2,2015
Allerdale Borough Council,10401,Employee Costs,Head of Governance,Agency Staff Costs,16/04/2015,130182,79.06,VENN GROUP,A01836,2,2015
Allerdale Borough Council,10401,Employee Costs,Head of Governance,Agency Staff Costs,16/04/2015,130183,79.86,VENN GROUP,A01836,2,2015
Allerdale Borough Council,10401,Employee Costs,Commissioning Support Pay Group,Agency Staff Costs,08/04/2015,130184,"12,000.00",CASH FRIDAY/LORD SEARCH & SELECTION LTD,A02108,2,2015
Allerdale Borough Council,15513,Supplies & Services,Carnegie Theatre,Subcontractors - General,30/04/2015,130185,210.00,R W AUDIO,C00059,2,2015
Allerdale Borough Council,15513,Supplies & Services,Carnegie Theatre,Subcontractors - General,30/04/2015,130186,220.00,R W AUDIO,C00059,2,2015
Allerdale Borough Council,15810,Supplies & Services,Carnegie Theatre,Software Licences,29/04/2015,130187,27.88,TICKETS.COM LIMITED,A00371,2,2015
Allerdale Borough Council,15103,Supplies & Services,Off-street - Owned,Purchase of Materials,27/04/2015,130188,675.00,NAGELS MULTIGRAPHIC LTD,A00690,2,2015
Allerdale Borough Council,12402,Premises,Corporate Property Maintenance,Electricity,26/04/2015,130189,18.61,EON,X00016,2,2015
Allerdale Borough Council,15703,Supplies & Services,IT Services,Call Charges,26/04/2015,130190,672.07,VODAFONE (PREV CABLE & WIRELESS),A00934,2,2015
Allerdale Borough Council,12408,Premises,Corporate Property Maintenance,Water & Sewage,18/04/2015,130191,274.75,UNITED UTILITIES ,X00011,2,2015
Allerdale Borough Council,12408,Premises,Corporate Property Maintenance,Water & Sewage,17/04/2015,130192,199.93,UNITED UTILITIES ,X00011,2,2015
Allerdale Borough Council,12408,Premises,Public Convenience Cleaning,Water & Sewage,21/04/2015,130193,-287.86,UNITED UTILITIES ,X00011,2,2015
Allerdale Borough Council,12408,Premises,Public Convenience Cleaning,Water & Sewage,21/04/2015,130194,-924.66,UNITED UTILITIES ,X00011,2,2015
Allerdale Borough Council,12408,Premises,Public Convenience Cleaning,Water & Sewage,21/04/2015,130195,15.43,UNITED UTILITIES ,X00011,2,2015
Allerdale Borough Council,12408,Premises,Public Convenience Cleaning,Water & Sewage,23/04/2015,130196,75.95,UNITED UTILITIES ,X00011,2,2015
Allerdale Borough Council,12408,Premises,Corporate Property Maintenance,Water & Sewage,21/04/2015,130197,92.60,UNITED UTILITIES ,X00011,2,2015
Allerdale Borough Council,15502,Supplies & Services,Legal Services,Land Registry Fees,06/05/2015,130198,42.00,HM LAND REGISTRY,A00505,2,2015
Allerdale Borough Council,81602,Balance Sheet,General Fund,Prov-Insurance Excess (Balance Sheet),15/04/2015,130199,835.96,BARCLAYCARD COMMERCIAL ,X00207,2,2015
Allerdale Borough Council,15808,Supplies & Services,IT Services,Computer Consumables,07/05/2015,130200,48.00,Redacted information - included personal information ,M00739,2,2015
Allerdale Borough Council,81602,Balance Sheet,General Fund,Prov-Insurance Excess (Balance Sheet),11/05/2015,130201,20.00,Redacted information - included personal information ,M00739,2,2015
Allerdale Borough Council,34150,Income,Carnegie Theatre,General Recovery of Other Costs-Income,30/04/2015,130202,280.00,ROSEHILL ARTS TRUST LTD,A01372,2,2015
Allerdale Borough Council,15514,Supplies & Services,Carnegie Theatre,Public Entertainment,30/04/2015,130203,340.00,Redacted information - included personal information ,A00349,2,2015
Allerdale Borough Council,70104,VAT,VAT Control Account,VAT - 20%,30/04/2015,130204,262.49,Redacted information - included personal information ,M00713,2,2015
Allerdale Borough Council,70104,VAT,VAT Control Account,VAT - 20%,28/04/2015,130205,"2,361.62",Redacted information - included personal information ,M00166,2,2015
Allerdale Borough Council,70104,VAT,VAT Control Account,VAT - 20%,30/04/2015,130206,367.50,WADAMS,A01245,2,2015
Allerdale Borough Council,16350,Supplies & Services,Homelessness,Miscellaneous Expenses,07/05/2015,130207,450.00,CUMBERLAND ESTATE AGENTS CLIENT MONEY,M00740,2,2015
Allerdale Borough Council,15509,Supplies & Services,Elections,Election Costs,12/05/2015,130208,250.00,Redacted information - included personal information ,M00044,2,2015
Allerdale Borough Council,15509,Supplies & Services,Elections,Election Costs,12/05/2015,130209,195.00,ABBEYTOWN ASSEMBLY ROOM,M00045,2,2015
Allerdale Borough Council,15509,Supplies & Services,Elections,Election Costs,12/05/2015,130210,75.00,THE ALLERDALE CREDIT UNION,A00493,2,2015
Allerdale Borough Council,15509,Supplies & Services,Elections,Election Costs,12/05/2015,130211,70.00,ALL SAINTS SCHOOL LEARNING CENTRE,M00047,2,2015
Allerdale Borough Council,15509,Supplies & Services,Elections,Election Costs,12/05/2015,130212,113.00,ALL SOULS CHURCH HALL,M00048,2,2015
Allerdale Borough Council,15509,Supplies & Services,Elections,Election Costs,12/05/2015,130213,100.00,ALLHALLOWS COMMUNITY CENTRE,M00049,2,2015
Allerdale Borough Council,15509,Supplies & Services,Elections,Election Costs,12/05/2015,130214,170.00,ANTHORN VILLAGE HALL,M00050,2,2015
Allerdale Borough Council,15509,Supplies & Services,Elections,Election Costs,12/05/2015,130215,65.00,ASHFIELD INFANTS SCHOOL,M00051,2,2015
Allerdale Borough Council,15509,Supplies & Services,Elections,Election Costs,12/05/2015,130216,130.00,ASPATRIA COMMUNITY CENTRE (FORMERLY ST KENTIGERNS CHURCH HALL)C,M00052,2,2015
Allerdale Borough Council,15509,Supplies & Services,Elections,Election Costs,12/05/2015,130217,70.00,ASPATRIA LIBRARY,M00053,2,2015
Allerdale Borough Council,15509,Supplies & Services,Elections,Election Costs,12/05/2015,130218,110.00,BAPTIST SUNDAY SCHOOL,M00054,2,2015
Allerdale Borough Council,15509,Supplies & Services,Elections,Election Costs,12/05/2015,130219,100.00,BASSENTHWAITE PARISH ROOM,M00552,2,2015
Allerdale Borough Council,15509,Supplies & Services,Elections,Election Costs,12/05/2015,130220,70.00,BELL INSTITUTE BOLTONGATE,M00056,2,2015
Allerdale Borough Council,15509,Supplies & Services,Elections,Election Costs,12/05/2015,130221,105.00,BLENCOGO VILLAGE HALL,M00057,2,2015
Allerdale Borough Council,15509,Supplies & Services,Elections,Election Costs,12/05/2015,130222,120.00,BLENNERHASSET VILLAGE HALL,M00058,2,2015
Allerdale Borough Council,15509,Supplies & Services,Elections,Election Costs,12/05/2015,130223,150.00,BLINDCRAKE VILLAGE HALL,M00059,2,2015
Allerdale Borough Council,15509,Supplies & Services,Elections,Election Costs,12/05/2015,130224,144.00,BOLTONS VILLAGE HALL,M00060,2,2015
Allerdale Borough Council,15509,Supplies & Services,Elections,Election Costs,12/05/2015,130225,100.00,BORROWDALE INSTITUTE ROSTHWAITE,M00061,2,2015
Allerdale Borough Council,15509,Supplies & Services,Elections,Election Costs,12/05/2015,130226,200.00,BROUGHTON MOOR PRIMARY,A01255,2,2015
Allerdale Borough Council,15509,Supplies & Services,Elections,Election Costs,12/05/2015,130227,140.00,BROUGHTON VILLAGE HALL,A01428,2,2015
Allerdale Borough Council,15509,Supplies & Services,Elections,Election Costs,12/05/2015,130228,90.00,BUTTERMERE CHURCH HALL,M00065,2,2015
Allerdale Borough Council,15509,Supplies & Services,Elections,Election Costs,12/05/2015,130229,100.00,CAMERTON VILLAGE HALL,M00066,2,2015
Allerdale Borough Council,15509,Supplies & Services,Elections,Election Costs,12/05/2015,130230,40.00,CHAPEL SUNDAY SCHOOL HESKET NEWMARKET,M00067,2,2015
Allerdale Borough Council,15509,Supplies & Services,Elections,Election Costs,12/05/2015,130231,125.00,CHRIST CHURCH HALL SOLWAY STREET,M00068,2,2015
Allerdale Borough Council,15509,Supplies & Services,Elections,Election Costs,12/05/2015,130232,150.00,CROSSCANONBY PARISH COMMUNITY CENTRE,M00069,2,2015
Allerdale Borough Council,15509,Supplies & Services,Elections,Election Costs,12/05/2015,130233,120.00,CROSTHWAITE PARISH ROOMS,M00070,2,2015
Allerdale Borough Council,15509,Supplies & Services,Elections,Election Costs,12/05/2015,130234,105.00,CULTERHAM HALL MAWBRAY,M00071,2,2015
Allerdale Borough Council,15509,Supplies & Services,Elections,Election Costs,12/05/2015,130235,105.00,DEARHAM PARISH HALL,M00072,2,2015
Allerdale Borough Council,15509,Supplies & Services,Elections,Election Costs,12/05/2015,130236,160.00,EAGLESFIELD VILLAGE HALL,M00554,2,2015
Allerdale Borough Council,15509,Supplies & Services,Elections,Election Costs,12/05/2015,130237,150.00,ELLENBOROUGH SOCIAL WELFARE CENTRE,M00555,2,2015
Allerdale Borough Council,15509,Supplies & Services,Elections,Election Costs,12/05/2015,130238,100.00,EMBLETON & DISTRICT PUBLIC HALL,M00075,2,2015
Allerdale Borough Council,15509,Supplies & Services,Elections,Election Costs,12/05/2015,130239,150.00,EWANRIGG AND NETHERTON COMMUNITY CENTRE,M00076,2,2015
Allerdale Borough Council,15509,Supplies & Services,Elections,Election Costs,12/05/2015,130240,200.00,FLEMING PLACE SOCIAL CLUB,M00556,2,2015
Allerdale Borough Council,15509,Supplies & Services,Elections,Election Costs,12/05/2015,130241,160.00,FLIMBY METHODIST CHAPEL,M00077,2,2015
Allerdale Borough Council,15509,Supplies & Services,Elections,Election Costs,12/05/2015,130242,120.00,GILCRUX VILLAGE HALL,M00078,2,2015
Allerdale Borough Council,15509,Supplies & Services,Elections,Election Costs,12/05/2015,130243,94.00,GLOBE HALL IREBY,M00079,2,2015
Allerdale Borough Council,15509,Supplies & Services,Elections,Election Costs,12/05/2015,130244,80.00,GRASSLOT WELFARE SOCIAL CLUB,M00080,2,2015
Allerdale Borough Council,15509,Supplies & Services,Elections,Election Costs,12/05/2015,130245,149.50,GRASSMOOR SPORTS CENTRE,M00081,2,2015
Allerdale Borough Council,15509,Supplies & Services,Elections,Election Costs,12/05/2015,130246,200.00,GREAT BROUGHTON BRITISH LEGION,M00082,2,2015
Allerdale Borough Council,15509,Supplies & Services,Elections,Election Costs,12/05/2015,130247,120.00,GREAT CLIFTON VILLAGE HALL,M00083,2,2015
Allerdale Borough Council,15509,Supplies & Services,Elections,Election Costs,12/05/2015,130248,60.00,GREENROW PENTECOSTAL CHURCH,M00084,2,2015
Allerdale Borough Council,15509,Supplies & Services,Elections,Election Costs,12/05/2015,130249,80.00,GREYSOUTHEN VILLAGE HALL,M00085,2,2015
Allerdale Borough Council,15509,Supplies & Services,Elections,Election Costs,12/05/2015,130250,75.00,HARRIS PARK BOWLING CLUB,M00086,2,2015
Allerdale Borough Council,15509,Supplies & Services,Elections,Election Costs,12/05/2015,130251,150.00,WORKINGTON HERITAGE GROUP LTD,A00339,2,2015
Allerdale Borough Council,15509,Supplies & Services,Elections,Election Costs,12/05/2015,130252,200.00,HIGH HARRINGTON COMMUNITY CENTRE,M00088,2,2015
Allerdale Borough Council,15509,Supplies & Services,Elections,Election Costs,12/05/2015,130253,180.00,HIGHLAND LADDIE GLASSON,M00089,2,2015
Allerdale Borough Council,15509,Supplies & Services,Elections,Election Costs,12/05/2015,130254,70.00,HOLME ST CUTHBERT CHURCH HALL,M00090,2,2015
Allerdale Borough Council,15509,Supplies & Services,Elections,Election Costs,12/05/2015,130255,150.00,KIRKBAMPTON VILLAGE HALL,M00091,2,2015
Allerdale Borough Council,15509,Supplies & Services,Elections,Election Costs,12/05/2015,130256,65.00,KIRKBRIDE PRIMARY SCHOOL,A01225,2,2015
Allerdale Borough Council,15509,Supplies & Services,Elections,Election Costs,12/05/2015,130257,120.00,KIRKSTILE COMMUNITY CENTRE,M00093,2,2015
Allerdale Borough Council,15509,Supplies & Services,Elections,Election Costs,12/05/2015,130258,75.00,LAYBOURN HOUSE,M00094,2,2015
Allerdale Borough Council,15509,Supplies & Services,Elections,Election Costs,12/05/2015,130259,100.00,LINDOW HALL BOWNESS,M00095,2,2015
Allerdale Borough Council,15509,Supplies & Services,Elections,Election Costs,12/05/2015,130260,130.00,LITTLE CLIFTON VILLAGE HALL,M00096,2,2015
Allerdale Borough Council,15509,Supplies & Services,Elections,Election Costs,12/05/2015,130261,175.00,LOWESWATER VILLAGE HALL,M00097,2,2015
Allerdale Borough Council,15509,Supplies & Services,Elections,Election Costs,12/05/2015,130262,183.00,LOW MOOR EVANGELICAL CHURCH,M00098,2,2015
Allerdale Borough Council,15509,Supplies & Services,Elections,Election Costs,12/05/2015,130263,138.00,ALLERDALE - CASH OFFICE,A00342,2,2015
Allerdale Borough Council,15509,Supplies & Services,Elections,Election Costs,12/05/2015,130264,150.00,MEMORIAL HALL BRIGHAM,M00099,2,2015
Allerdale Borough Council,15509,Supplies & Services,Elections,Election Costs,12/05/2015,130265,140.00,METHODIST CHURCH KESWICK,M00100,2,2015
Allerdale Borough Council,15509,Supplies & Services,Elections,Election Costs,12/05/2015,130266,250.00,MILLFIELD RETIREMENT HOME,M00101,2,2015
Allerdale Borough Council,15509,Supplies & Services,Elections,Election Costs,12/05/2015,130267,240.00,MOORCLOSE COMMUNITY CENTRE LTD,A00709,2,2015
Allerdale Borough Council,15509,Supplies & Services,Elections,Election Costs,12/05/2015,130268,70.00,NEW HALL SEBERGHAM,M00103,2,2015
Allerdale Borough Council,15509,Supplies & Services,Elections,Election Costs,12/05/2015,130269,130.00,NEWLANDS OLD SCHOOLROOM,M00104,2,2015
Allerdale Borough Council,15509,Supplies & Services,Elections,Election Costs,12/05/2015,130270,225.00,NEWTON ARLOSH PARISH HALL,M00105,2,2015
Allerdale Borough Council,15509,Supplies & Services,Elections,Election Costs,12/05/2015,130271,150.00,NORTHSIDE YOUTH CENTRE,M00106,2,2015
Allerdale Borough Council,15509,Supplies & Services,Elections,Election Costs,12/05/2015,130272,100.00,OULTON PARISH INSTITUTE,M00108,2,2015
Allerdale Borough Council,15509,Supplies & Services,Elections,Election Costs,12/05/2015,130273,80.00,PAPCASTLE & BELLE VUE VILLAGE HALL,M00110,2,2015
Allerdale Borough Council,15509,Supplies & Services,Elections,Election Costs,12/05/2015,130274,65.00,PARISH ROOM AIKTON,M00112,2,2015
Allerdale Borough Council,15509,Supplies & Services,Elections,Election Costs,12/05/2015,130275,140.00,PARISH ROOM CALDBECK,M00111,2,2015
Allerdale Borough Council,15509,Supplies & Services,Elections,Election Costs,12/05/2015,130276,100.00,PLUMBLAND VILLAGE HALL,M00113,2,2015
Allerdale Borough Council,15509,Supplies & Services,Elections,Election Costs,12/05/2015,130277,120.00,PROSPECT VILLAGE HALL,M00114,2,2015
Allerdale Borough Council,15509,Supplies & Services,Elections,Election Costs,13/05/2015,130278,160.00,QUEEN STREET HALL,M00115,2,2015
Allerdale Borough Council,15509,Supplies & Services,Elections,Election Costs,13/05/2015,130279,80.00,ROSLEY VILLAGE HALL,M00116,2,2015
Allerdale Borough Council,15509,Supplies & Services,Elections,Election Costs,13/05/2015,130280,65.00,SEATON C OF E JUNIOR SCHOOL,A01254,2,2015
Allerdale Borough Council,15509,Supplies & Services,Elections,Election Costs,13/05/2015,130281,250.00,SOLWAY COMMUNITY TECHNOLOGY COLLEGE (SPORTS HALL),M00118,2,2015
Allerdale Borough Council,15509,Supplies & Services,Elections,Election Costs,13/05/2015,130282,60.00,ST. GREGORYS RC SCHOOL (NURSERY CLASS),M00119,2,2015
Allerdale Borough Council,15509,Supplies & Services,Elections,Election Costs,13/05/2015,130283,150.00,ST HERBERTS CHURCH HALL,M00741,2,2015
Allerdale Borough Council,15509,Supplies & Services,Elections,Election Costs,13/05/2015,130284,125.00,ST. JAMES CHURCH HAYTON,M00120,2,2015
Allerdale Borough Council,15509,Supplies & Services,Elections,Election Costs,13/05/2015,130285,225.00,ST JOHNS COMMUNITY HALL,M00742,2,2015
Allerdale Borough Council,15509,Supplies & Services,Elections,Election Costs,13/05/2015,130286,180.00,ST. MARYS CHURCH HALL WESTFIELD,M00122,2,2015
Allerdale Borough Council,15509,Supplies & Services,Elections,Election Costs,13/05/2015,130287,150.00,ST. MARYS CHURCH OF ENGLAND HALL,M00123,2,2015
Allerdale Borough Council,15509,Supplies & Services,Elections,Election Costs,13/05/2015,130288,150.00,ST MARYS RC CHURCH HALL CHURCH RD,M00465,2,2015
Allerdale Borough Council,15509,Supplies & Services,Elections,Election Costs,13/05/2015,130289,112.00,ST MICHAELS C OF E SCHOOL,M00558,2,2015
Allerdale Borough Council,15509,Supplies & Services,Elections,Election Costs,13/05/2015,130290,100.00,ST MICHAELS RESOURCE CENTRE,M00467,2,2015
Allerdale Borough Council,15509,Supplies & Services,Elections,Election Costs,13/05/2015,130291,125.00,ST. MUNGOS CHURCH,M00126,2,2015
Allerdale Borough Council,15509,Supplies & Services,Elections,Election Costs,13/05/2015,130292,150.00,ST. PAULS CHURCH HALL,M00127,2,2015
Allerdale Borough Council,15509,Supplies & Services,Elections,Election Costs,13/05/2015,130293,150.00,STABLE RIGG GRANGE,M00128,2,2015
Allerdale Borough Council,15509,Supplies & Services,Elections,Election Costs,13/05/2015,130294,200.00,SUPPER ROOM MASONIC HALL ASPATRIA,M00129,2,2015
Allerdale Borough Council,15509,Supplies & Services,Elections,Election Costs,13/05/2015,130295,100.00,TANGLEWOOD CARAVAN PARK,M00130,2,2015
Allerdale Borough Council,15509,Supplies & Services,Elections,Election Costs,13/05/2015,130296,85.00,TENANTS LOUNGE 8 BURNSIDE,M00559,2,2015
Allerdale Borough Council,15509,Supplies & Services,Elections,Election Costs,13/05/2015,130297,175.00,THE BUSH INN TALLENTIRE,M00131,2,2015
Allerdale Borough Council,15509,Supplies & Services,Elections,Election Costs,13/05/2015,130298,150.00,THE CONFERENCE ROOM THE MINTO CENTRE,M00132,2,2015
Allerdale Borough Council,15509,Supplies & Services,Elections,Election Costs,13/05/2015,130299,65.00,THE OFFICE DUNCAN HILL DEPOT,M00134,2,2015
Allerdale Borough Council,15509,Supplies & Services,Elections,Election Costs,13/05/2015,130300,75.00,IMPACT HOUSING ASSOCIATION LTD,A00236,2,2015
Allerdale Borough Council,15509,Supplies & Services,Elections,Election Costs,13/05/2015,130301,200.00,THE SNOOTY FOX COUNTRY INN ULDALE,M00136,2,2015
Allerdale Borough Council,15509,Supplies & Services,Elections,Election Costs,13/05/2015,130302,75.00,THIRLMERE RECREATION HALL,M00137,2,2015
Allerdale Borough Council,15509,Supplies & Services,Elections,Election Costs,13/05/2015,130303,240.00,TORPENHOW VILLAGE HALL,M00140,2,2015
Allerdale Borough Council,15509,Supplies & Services,Elections,Election Costs,13/05/2015,130304,200.00,UNITED UTILITY TREATMENT WORKS,M00107,2,2015
Allerdale Borough Council,15509,Supplies & Services,Elections,Election Costs,13/05/2015,130305,150.00,VICTORIA HALL,M00141,2,2015
Allerdale Borough Council,15509,Supplies & Services,Elections,Election Costs,13/05/2015,130306,65.00,VICTORIA INFANTS SCHOOL,M00142,2,2015
Allerdale Borough Council,15509,Supplies & Services,Elections,Election Costs,13/05/2015,130307,60.00,VICTORIA JUNIOR SCHOOL,M00143,2,2015
Allerdale Borough Council,15509,Supplies & Services,Elections,Election Costs,13/05/2015,130308,90.00,VILLAGE HALL ALLONBY,M00144,2,2015
Allerdale Borough Council,15509,Supplies & Services,Elections,Election Costs,13/05/2015,130309,50.00,VILLAGE HALL MILLBECK,M00145,2,2015
Allerdale Borough Council,15509,Supplies & Services,Elections,Election Costs,13/05/2015,130310,135.00,VILLAGE HALL PORTINSCALE,M00146,2,2015
Allerdale Borough Council,15509,Supplies & Services,Elections,Election Costs,13/05/2015,130311,100.00,WADAMS,A01245,2,2015
Allerdale Borough Council,15509,Supplies & Services,Elections,Election Costs,13/05/2015,130312,40.00,WAVERTON VILLAGE HALL,M00148,2,2015
Allerdale Borough Council,15509,Supplies & Services,Elections,Election Costs,13/05/2015,130313,80.00,WELTON VILLAGE HALL,M00149,2,2015
Allerdale Borough Council,15509,Supplies & Services,Elections,Election Costs,13/05/2015,130314,50.00,WESTNEWTON VILLAGE HALL,M00150,2,2015
Allerdale Borough Council,15509,Supplies & Services,Elections,Election Costs,13/05/2015,130315,150.00,WESTWARD PARISH ROOM,M00151,2,2015
Allerdale Borough Council,15509,Supplies & Services,Elections,Election Costs,13/05/2015,130316,216.00,WHEYRIGG HALL HOTEL,M00152,2,2015
Allerdale Borough Council,15509,Supplies & Services,Elections,Election Costs,13/05/2015,130317,300.00,WIGTON MARKET HALL,M00153,2,2015
Allerdale Borough Council,15509,Supplies & Services,Elections,Election Costs,13/05/2015,130318,130.00,YEW TREE HALL LORTON,M00154,2,2015
Allerdale Borough Council,15202,Supplies & Services,Carnegie Theatre,Bar Provision,09/04/2015,130320,317.42,CLASSIC DRINKS LIMITED,A00413,2,2015
Allerdale Borough Council,15202,Supplies & Services,Carnegie Theatre,Bar Provision,23/04/2015,130321,157.32,BOOKER CASH & CARRY,A01419,2,2015
Allerdale Borough Council,15104,Supplies & Services,Bereavement Services,Supplies for Resale,10/04/2015,130322,59.00,GRANART,A00644,2,2015
Allerdale Borough Council,15202,Supplies & Services,Carnegie Theatre,Bar Provision,27/04/2015,130323,123.74,BOOKER CASH & CARRY ,A01419,2,2015
Allerdale Borough Council,15514,Supplies & Services,Carnegie Theatre,Public Entertainment,30/04/2015,130324,29.24,Redacted information - included personal information ,A01052,2,2015
Allerdale Borough Council,15513,Supplies & Services,Carnegie Theatre,Subcontractors - General,29/04/2015,130325,675.00,NH TECHNICAL SERVICES,A02008,2,2015
Allerdale Borough Council,14101,Transport,Mayoral Services,Vehicle Leasing,26/03/2015,130326,30.00,ACE TAXIS,A01927,2,2015
Allerdale Borough Council,14101,Transport,Mayoral Services,Vehicle Leasing,06/03/2015,130327,75.00,ACE TAXIS,A01927,2,2015
Allerdale Borough Council,14101,Transport,Mayoral Services,Vehicle Leasing,20/03/2015,130328,30.00,ACE TAXIS,A01927,2,2015
Allerdale Borough Council,14101,Transport,Mayoral Services,Vehicle Leasing,18/03/2015,130329,50.00,ACE TAXIS,A01927,2,2015
Allerdale Borough Council,14101,Transport,Mayoral Services,Vehicle Leasing,14/03/2015,130330,10.00,ACE TAXIS,A01927,2,2015
Allerdale Borough Council,14101,Transport,Mayoral Services,Vehicle Leasing,13/03/2015,130331,30.00,ACE TAXIS,A01927,2,2015
Allerdale Borough Council,14101,Transport,Mayoral Services,Vehicle Leasing,09/03/2015,130332,15.00,ACE TAXIS,A01927,2,2015
Allerdale Borough Council,14101,Transport,Mayoral Services,Vehicle Leasing,01/03/2015,130333,100.00,ACE TAXIS,A01927,2,2015
Allerdale Borough Council,14101,Transport,Mayoral Services,Vehicle Leasing,25/04/2015,130334,30.00,ACE TAXIS,A01927,2,2015
Allerdale Borough Council,15101,Supplies & Services,Recycling,Equipment Costs,29/04/2015,130335,"3,575.09",BPI RECYCLED PRODUCTS,A00318,2,2015
Allerdale Borough Council,15501,Supplies & Services,Parks Development,Consultants Fees,17/04/2015,130336,95.00,PLAYDALE PLAYGROUNDS LTD,A00853,2,2015
Allerdale Borough Council,16102,Supplies & Services,Supporting Allerdale Town Centres,Regeneration Initiatives,30/04/2015,130337,200.00,EW & PA NICHOLSON LTD,A01268,2,2015
Allerdale Borough Council,15101,Supplies & Services,Recycling,Equipment Costs,28/04/2015,130338,240.00,FIRPRESS PRINTERS,A00063,2,2015
Allerdale Borough Council,12101,Premises,Corporate Property Maintenance,External Maintenance & Decoration,06/05/2015,130339,43.45,BOOKER CASH & CARRY ,A01419,2,2015
Allerdale Borough Council,15404,Supplies & Services,Banking and Interest,Reference Materials,03/03/2015,130340,735.00,CIPFA,A00572,2,2015
Allerdale Borough Council,12101,Premises,Corporate Property Maintenance,External Maintenance & Decoration,11/05/2015,130341,65.00,CUMBRIA SUPERGLAZE,A00982,2,2015
Allerdale Borough Council,15404,Supplies & Services,Finance and Accounting Pay Group,Reference Materials,03/03/2015,130342,170.00,CIPFA,A00572,2,2015
Allerdale Borough Council,15508,Supplies & Services,Risk Management,Subscriptions,03/03/2015,130343,170.00,CIPFA,A00572,2,2015
Allerdale Borough Council,16102,Supplies & Services,Heat Exchange Network,Regeneration Initiatives,27/02/2015,130344,"23,807.52",LAND & WATER RESOURCE CONSULTANTS LTD,A02087,2,2015
Allerdale Borough Council,15403,Supplies & Services,Communications and Marketing,Publications and Periodicals,08/04/2015,130345,75.20,P & D NEWSAGENTS,A00237,2,2015
Allerdale Borough Council,14104,Transport,Parking Services Pay Group,Repairs & Maintenance,13/04/2015,130346,36.85,HI-Q TYRESERVICES,A00313,2,2015
Allerdale Borough Council,16100,Supplies & Services,Carnegie Theatre,Budget-Advertising and Promotions,29/01/2015,130347,178.00,INDIVIDUAL ENTERTAINMENT LTD,A02184,2,2015
Allerdale Borough Council,15514,Supplies & Services,Carnegie Theatre,Public Entertainment,29/01/2015,130348,"1,500.00",INDIVIDUAL ENTERTAINMENT LTD,A02184,2,2015
Allerdale Borough Council,12403,Premises,Corporate Property Maintenance,Gas,01/05/2015,130349,18.08,EON ,X00016,2,2015
Allerdale Borough Council,12402,Premises,Corporate Property Maintenance,Electricity,01/05/2015,130350,29.27,EON ,X00016,2,2015
Allerdale Borough Council,15502,Supplies & Services,Legal Services,Land Registry Fees,11/05/2015,130351,15.00,HM LAND REGISTRY,A00505,2,2015
Allerdale Borough Council,33113,Income,Building Control - Chargeable,Building Control Fees Income,08/05/2015,130352,274.93,FINESSE,X00194,2,2015
Allerdale Borough Council,16350,Supplies & Services,Homelessness,Miscellaneous Expenses,12/05/2015,130353,450.00,BR PROPERTIES MANAGEMENT,M00239,2,2015
Allerdale Borough Council,72104,Holding and Control Accounts,Debtor Control Account,Debtors (Control Account),12/05/2015,130354,14.60,Redacted information - included personal information ,R00011,2,2015
Allerdale Borough Council,16350,Supplies & Services,Planning and Development Pay Group,Miscellaneous Expenses,22/04/2015,130355,349.11,TUSKERDIRECT LTD,A02186,2,2015
Allerdale Borough Council,15506,Supplies & Services,Localities & Partnerships,Professional Services,20/04/2015,130356,"1,600.00",VOLUNTARY ACTION CUMBRIA,A01518,2,2015
Allerdale Borough Council,15202,Supplies & Services,Carnegie Theatre,Bar Provision,04/05/2015,130357,250.00,STOCK CONTROL SOLUTIONS,A00256,2,2015
Allerdale Borough Council,15810,Supplies & Services,Carnegie Theatre,Software Licences,06/05/2015,130358,22.96,TICKETS.COM LIMITED,A00371,2,2015
Allerdale Borough Council,12301,Premises,Carnegie Theatre,Security,19/04/2015,130359,405.00,PM SECURITY ,A02111,2,2015
Allerdale Borough Council,12301,Premises,Carnegie Theatre,Security,26/04/2015,130360,315.00,PM SECURITY,A02111,2,2015
Allerdale Borough Council,15550,Supplies & Services,Carnegie Theatre,General-Service Related Fees,30/04/2015,130361,10.60,TRANSACTION NETWORK SERVICES (UK) LTD,A01778,2,2015
Allerdale Borough Council,54105,Capital Expenditure,Disabled Facilities Grants,Grants  Private Individuals (Capital),12/05/2015,130362,"2,685.00",BLUE FLAME SERVICES LTD,X00213,2,2015
Allerdale Borough Council,26000,Earmarked Reserves,Markets Service Development,Budget-Expd funded from Reserve,14/05/2015,130363,"1,320.00",Redacted information - included personal information ,M00601,2,2015
Allerdale Borough Council,15101,Supplies & Services,Homelessness,Equipment Costs,12/05/2015,130364,52.51,ALLERDALE BOROUGH COUNCIL,X00034,2,2015
Allerdale Borough Council,14150,Transport,Gates Travel,General-Council Vehicles (Non-Capital),30/04/2015,130365,"2,266.10",GATES TRAVEL,A01525,2,2015
Allerdale Borough Council,12201,Premises,Carnegie Trust Contribution,Internal Maintenance,08/05/2015,130366,498.50,RAFFERTY DECORATING SERVICES LTD,C00117,2,2015
Allerdale Borough Council,10202,Employee Costs,Human Resources Pay Group,Medical Screening,14/04/2015,130368,424.36,WELLWORK LTD,A00029,2,2015
Allerdale Borough Council,14202,Transport,Chief Executive,Hire Car and petrol,23/04/2015,130369,152.94,ENTERPRISE RENT A CAR,A01367,2,2015
Allerdale Borough Council,15904,Supplies & Services,Members Services,Training,24/04/2015,130370,60.95,NATIONAL PEN LTD,A00469,2,2015
Allerdale Borough Council,15101,Supplies & Services,Trade Waste,Equipment Costs,30/04/2015,130371,500.00,PLASTIC OMNIUM URBAN SYSTEMS LTD,A00159,2,2015
Allerdale Borough Council,15802,Supplies & Services,IT Services,Hardware Maintenance,30/04/2015,130372,"3,389.24",INTRINSIC TECHNOLOGY LTD,A00902,2,2015
Allerdale Borough Council,14105,Transport,Solway AONB Other Projects,"Fuel, Lubricants & Consumables",12/05/2015,130373,182.16,BUDGET EXHAUST & TYRE CENTRE,A00758,2,2015
Allerdale Borough Council,12203,Premises,Carnegie Trust Contribution,Plumbing and Heating Maintenance,11/05/2015,130374,644.00,Redacted information - included personal information ,C00008,2,2015
Allerdale Borough Council,15509,Supplies & Services,Elections,Election Costs,06/05/2015,130375,36.50,ENTERPRISE RENT A CAR,A01367,2,2015
Allerdale Borough Council,15509,Supplies & Services,Elections,Election Costs,06/05/2015,130376,50.40,ENTERPRISE RENT A CAR,A01367,2,2015
Allerdale Borough Council,12408,Premises,Public Convenience Cleaning,Water & Sewage,07/04/2015,130377,"1,212.52",UNITED UTILITIES,X00011,2,2015
Allerdale Borough Council,15804,Supplies & Services,IT Services,Computer Data Lines B.T.,01/05/2015,130378,"1,642.21",VODAFONE (PREV CABLE & WIRELESS),A00934,2,2015
Allerdale Borough Council,12403,Premises,Corporate Property Maintenance,Gas,06/05/2015,130379,233.31,BRITISH GAS,X00039,2,2015
Allerdale Borough Council,12402,Premises,Corporate Property Maintenance,Electricity,08/05/2015,130380,"3,931.05",N POWER,X00015,2,2015
Allerdale Borough Council,12402,Premises,Corporate Property Maintenance,Electricity,08/05/2015,130381,280.67,N POWER ,X00015,2,2015
Allerdale Borough Council,15805,Supplies & Services,IT Services,Computer Network,11/05/2015,130382,30.00,THUS/DEMON PLC/ (VODAFONE),A00598,2,2015
Allerdale Borough Council,15506,Supplies & Services,Communications and Marketing,Professional Services,24/04/2015,130383,"1,800.00",ELSWORTH COMMUNICATIONS,A01869,2,2015
Allerdale Borough Council,15101,Supplies & Services,Public Building Cleaning,Equipment Costs,30/04/2015,130384,510.44,INSTOCK (CHANDLERS),A00050,2,2015
Allerdale Borough Council,12305,Premises,Corporate Property Maintenance,Inspections and Services,26/03/2015,130385,685.00,WEST COAST SURVEYS LTD,A00154,2,2015
Allerdale Borough Council,15506,Supplies & Services,Communications and Marketing,Professional Services,05/05/2015,130386,510.00,LAKES PR LIMITED,A01912,2,2015
Allerdale Borough Council,15514,Supplies & Services,Carnegie Theatre,Public Entertainment,19/05/2015,130387,625.00,VALUE ADDED TALENT,A02169,2,2015
Allerdale Borough Council,10401,Employee Costs,Carnegie Theatre,Agency Staff Costs,22/04/2015,130388,612.75,ADECCO RECRUITMENT,A00188,2,2015
Allerdale Borough Council,10401,Employee Costs,Carnegie Theatre,Agency Staff Costs,22/04/2015,130389,612.75,ADECCO RECRUITMENT,A00188,2,2015
Allerdale Borough Council,10401,Employee Costs,Carnegie Theatre,Agency Staff Costs,29/04/2015,130390,612.75,ADECCO RECRUITMENT,A00188,2,2015
Allerdale Borough Council,10401,Employee Costs,Carnegie Theatre,Agency Staff Costs,06/05/2015,130391,849.68,ADECCO RECRUITMENT,A00188,2,2015
Allerdale Borough Council,15601,Supplies & Services,Revenue,Postage,22/04/2015,130392,300.00,ROYAL MAIL LETTERS,X00021,2,2015
Allerdale Borough Council,15903,Supplies & Services,Members Services,Courses & Seminars,19/03/2015,130393,-16.00,LOCAL GOVERNMENT ASSOCIATION,A00686,2,2015
Allerdale Borough Council,15804,Supplies & Services,IT Services,Computer Data Lines B.T.,01/04/2015,130394,"3,044.34",VODAFONE (PREV CABLE & WIRELESS),A00934,2,2015
Allerdale Borough Council,15702,Supplies & Services,Off-street - Owned,Line Rentals,30/04/2015,130395,567.75,COBALT TELEPHONE TECHNOLOGY,A01008,2,2015
Allerdale Borough Council,12402,Premises,Public Convenience Cleaning,Electricity,09/05/2015,130396,4.97,N POWER,X00015,2,2015
Allerdale Borough Council,12402,Premises,Public Convenience Cleaning,Electricity,09/05/2015,130397,84.08,N POWER,X00015,2,2015
Allerdale Borough Council,12402,Premises,Public Convenience Cleaning,Electricity,09/05/2015,130398,-4.71,N POWER,X00015,2,2015
Allerdale Borough Council,10401,Employee Costs,Licensing Pay Group,Agency Staff Costs,28/04/2015,130399,"1,845.89",G4S POLICING SOLUTIONS LTD,A02066,2,2015
Allerdale Borough Council,12203,Premises,Carnegie Trust Contribution,Plumbing and Heating Maintenance,05/05/2015,130400,570.00,Redacted information - included personal information ,C00008,2,2015
Allerdale Borough Council,16301,Supplies & Services,KMAG Enhancement Activity,Reimbursement,27/01/2015,130401,"1,090.08",KESWICK MUSEUM & ART GALLERY,A00337,2,2015
Allerdale Borough Council,16301,Supplies & Services,KMAG Enhancement Activity,Reimbursement,18/03/2015,130402,"1,122.00",KESWICK MUSEUM & ART GALLERY,A00337,2,2015
Allerdale Borough Council,15101,Supplies & Services,Corporate Property Maintenance,Equipment Costs,06/05/2015,130403,3.49,BOOKER CASH & CARRY,A01419,2,2015
Allerdale Borough Council,12101,Premises,Corporate Property Maintenance,External Maintenance & Decoration,05/05/2015,130404,126.33,BOOKER CASH & CARRY,A01419,2,2015
Allerdale Borough Council,15505,Supplies & Services,Licensing Service,Licences,01/05/2015,130405,"3,458.40",NEWAUTO LTD T/A MOGO UK,A00303,2,2015
Allerdale Borough Council,15513,Supplies & Services,Carnegie Theatre,Subcontractors - General,06/05/2015,130406,170.00,R W AUDIO,C00059,2,2015
Allerdale Borough Council,73102,Holding and Control Accounts,Workington Hall Repairs,Holding Accounts General - Expenditure,30/04/2015,130407,"2,250.00",MOSEDALE GILLATT,A01020,2,2015
Allerdale Borough Council,15401,Supplies & Services,Document Management Pay Group,General Stationery,30/04/2015,130408,317.24,LYRECO,A00043,2,2015
Allerdale Borough Council,15811,Supplies & Services,IT Services,Software Maintenance,06/05/2015,130409,"3,847.00",CONTRACT DATA RESEARCH LTD,A00393,2,2015
Allerdale Borough Council,15603,Supplies & Services,Document Management Pay Group,Franking Machine Costs,01/05/2015,130410,300.00,THE MAILING ROOM (TMR EXECUTIVE AGENCY LTD),A00733,2,2015
Allerdale Borough Council,12301,Premises,Crime Prevention,Security,28/04/2015,130411,600.00,PARKING INFRASTRUCTURE SERVICES UK,A01343,2,2015
Allerdale Borough Council,15811,Supplies & Services,Parking Services Pay Group,Software Maintenance,27/04/2015,130412,58.08,RELIANCE HIGH-TECH LTD,C00123,2,2015
Allerdale Borough Council,15507,Supplies & Services,Land Charges Service,Searches,07/05/2015,130413,360.00,CUMBRIA CC - GENERAL,A00066,2,2015
Allerdale Borough Council,15506,Supplies & Services,Environmental Health Pay Group,Professional Services,30/04/2015,130414,307.00,Redacted information - included personal information ,A01969,2,2015
Allerdale Borough Council,16001,Supplies & Services,Banking and Interest,Bank Charges and Fees,30/04/2015,130415,24.55,ALLPAY.NET LIMITED,A00714,2,2015
Allerdale Borough Council,16001,Supplies & Services,Banking and Interest,Bank Charges and Fees,30/04/2015,130416,26.85,ALLPAY.NET LIMITED,A00714,2,2015
Allerdale Borough Council,16001,Supplies & Services,Banking and Interest,Bank Charges and Fees,30/04/2015,130417,29.22,ALLPAY.NET LIMITED,A00714,2,2015
Allerdale Borough Council,16001,Supplies & Services,Banking and Interest,Bank Charges and Fees,30/04/2015,130418,36.03,ALLPAY.NET LIMITED,A00714,2,2015
Allerdale Borough Council,16001,Supplies & Services,Banking and Interest,Bank Charges and Fees,30/04/2015,130419,64.04,ALLPAY.NET LIMITED,A00714,2,2015
Allerdale Borough Council,16001,Supplies & Services,Banking and Interest,Bank Charges and Fees,30/04/2015,130420,"1,640.85",ALLPAY.NET LIMITED,A00714,2,2015
Allerdale Borough Council,15203,Supplies & Services,Rugby World Cup,Catering Costs and Consumables,18/05/2015,130421,101.40,WORKINGTON PLAYGOERS,M00028,2,2015
Allerdale Borough Council,20100,Third Party Payments,Museums,Budget-Partnership Services,24/04/2015,130422,"12,000.00",KESWICK MUSEUM & ART GALLERY,A00337,2,2015
Allerdale Borough Council,16301,Supplies & Services,KMAG Enhancement Activity,Reimbursement,24/04/2015,130423,"1,122.00",KESWICK MUSEUM & ART GALLERY,A00337,2,2015
Allerdale Borough Council,16001,Supplies & Services,Banking and Interest,Bank Charges and Fees,30/04/2015,130424,17.85,ALLPAY.NET LIMITED,A00714,2,2015
Allerdale Borough Council,20301,Third Party Payments,Parks and Grounds Maintenance,Contract Services-Parks & Open Spaces,28/04/2015,130425,"95,000.00",ISS WATERERS LANDSCAPE,C00044,2,2015
Allerdale Borough Council,16001,Supplies & Services,Banking and Interest,Bank Charges and Fees,30/04/2015,130426,19.67,ALLPAY.NET LIMITED,A00714,2,2015
Allerdale Borough Council,16001,Supplies & Services,Banking and Interest,Bank Charges and Fees,30/04/2015,130427,18.69,ALLPAY.NET LIMITED,A00714,2,2015
Allerdale Borough Council,16001,Supplies & Services,Banking and Interest,Bank Charges and Fees,30/04/2015,130428,18.46,ALLPAY.NET LIMITED,A00714,2,2015
Allerdale Borough Council,15103,Supplies & Services,KMAG Enhancement Activity,Purchase of Materials,17/10/2014,130429,570.90,YORKSHIRE PURCHASING ORGANISATION,A00747,2,2015
Allerdale Borough Council,15501,Supplies & Services,Estates,Consultants Fees,21/04/2015,130430,"1,110.00",HAYS SPECIALIST RECRUITMENT LTD,A00280,2,2015
Allerdale Borough Council,15103,Supplies & Services,Health and Safety,Purchase of Materials,21/04/2015,130431,41.28,POSTURITE (UK) LTD,A00336,2,2015
Allerdale Borough Council,15103,Supplies & Services,Health and Safety,Purchase of Materials,21/04/2015,130432,120.61,SETON,A01435,2,2015
Allerdale Borough Council,14202,Transport,Housing Services Pay Group,Hire Car and petrol,29/04/2015,130433,95.63,ENTERPRISE RENT A CAR,A01367,2,2015
Allerdale Borough Council,15506,Supplies & Services,Environmental Protection,Professional Services,30/04/2015,130434,196.78,BEACON VETERINARY CENTRE,A00708,2,2015
Allerdale Borough Council,15501,Supplies & Services,Homelessness,Consultants Fees,06/05/2015,130435,30.00,MARYPORT HEALTH SERVICE,A00421,2,2015
Allerdale Borough Council,10401,Employee Costs,Building Control - Chargeable,Agency Staff Costs,29/04/2015,130436,247.50,THE OYSTER PARTNERSHIP LTD,C00118,2,2015
Allerdale Borough Council,15810,Supplies & Services,IT Services,Software Licences,18/03/2015,130437,500.00,HALAROSE LIMITED,A00012,2,2015
Allerdale Borough Council,15503,Supplies & Services,Human Resources Pay Group,Court and Tribunal Costs,08/05/2015,130438,700.00,CUMBRIA CC - GENERAL,A00066,2,2015
Allerdale Borough Council,15512,Supplies & Services,Animal Welfare,Kennelling,05/05/2015,130439,"7,923.00",WHINMILL FARM CANINE CENTRE,A00117,2,2015
Allerdale Borough Council,15513,Supplies & Services,Animal Welfare,Subcontractors - General,30/04/2015,130440,18.96,MILLCROFT VETERINARY GROUP,A00211,2,2015
Allerdale Borough Council,15506,Supplies & Services,Parks Development,Professional Services,30/04/2015,130441,525.00,EDMONDSON SURVEYS,A02151,2,2015
Allerdale Borough Council,16150,Supplies & Services,Solway Wetlands Project,General Promotions,12/05/2015,130442,250.00,STEVE BLAKE PHOTOGRAPHY,A01930,2,2015
Allerdale Borough Council,15101,Supplies & Services,Parks and Grounds Maintenance,Equipment Costs,30/04/2015,130443,200.00,EW & PA NICHOLSON LTD,A01268,2,2015
Allerdale Borough Council,12309,Premises,Corporate Property Maintenance,Fire and Safety,30/04/2015,130444,31.00,ORIAN SOLUTIONS LTD,A01814,2,2015
Allerdale Borough Council,16150,Supplies & Services,Solway AONB Other Projects,General Promotions,25/04/2015,130445,120.00,WEST HOUSE,A02020,2,2015
Allerdale Borough Council,15101,Supplies & Services,Carnegie Theatre,Equipment Costs,16/04/2015,130446,110.83,CPC,A01872,2,2015
Allerdale Borough Council,16150,Supplies & Services,Solway Wetlands Project,General Promotions,12/05/2015,130447,"1,450.00",TALE TRAILS,A02033,2,2015
Allerdale Borough Council,16150,Supplies & Services,"The Hub, Workington Town Centre",General Promotions,28/04/2015,130448,119.15,PPL,A00246,2,2015
Allerdale Borough Council,15501,Supplies & Services,Estates,Consultants Fees,12/05/2015,130449,"1,005.00",HAYS SPECIALIST RECRUITMENT LTD,A00280,2,2015
Allerdale Borough Council,15506,Supplies & Services,Legal Services,Professional Services,28/04/2015,130450,359.10,BOND DICKINSON LLP,A01933,2,2015
Allerdale Borough Council,15506,Supplies & Services,Allerdale Investment Partnership,Professional Services,30/04/2015,130451,226.50,FREETH CARTWRIGHT LLP,A01821,2,2015
Allerdale Borough Council,15808,Supplies & Services,Multi-functional Printers,Computer Consumables,06/05/2015,130452,199.00,ANTALIS LIMITED,A00122,2,2015
Allerdale Borough Council,15103,Supplies & Services,Environmental Protection,Purchase of Materials,15/05/2015,130453,11.50,CIEH WALES DIRECTORATE,A02188,2,2015
Allerdale Borough Council,14105,Transport,Solway AONB Other Projects,"Fuel, Lubricants & Consumables",30/04/2015,130454,57.00,ASPATRIA FARMERS LIMITED,A00736,2,2015
Allerdale Borough Council,20150,Third Party Payments,Land Charges Service,General Partnership Service Fees,15/05/2015,130455,"1,713.24",LOCAL GOVERNMENT ASSOCIATION,A00686,2,2015
Allerdale Borough Council,15401,Supplies & Services,Finance and Accounting Pay Group,General Stationery,23/04/2015,130456,47.92,SAGE (UK) LTD,A01911,2,2015
Allerdale Borough Council,12405,Premises,Customer & Transformation Programme,Rentals and Lease Charges,26/03/2015,130457,57.00,EILBECK RENTAL,A01161,2,2015
Allerdale Borough Council,72104,Holding and Control Accounts,Debtor Control Account,Debtors (Control Account),18/05/2015,130458,364.00,Redacted information - included personal information ,M00743,2,2015
Allerdale Borough Council,33150,Income,Credit Union,Other Fees Income,15/05/2015,130459,"2,694.00",THE ALLERDALE CREDIT UNION,A00493,2,2015
Allerdale Borough Council,33121,Income,Off-street - Owned,Excess Charges - Car Parks Income,15/05/2015,130460,"1,033.99",Redacted information - included personal information ,M00744,2,2015
Allerdale Borough Council,99903,Suspense Acc,Other Income Suspense Account,Suspense Account,18/05/2015,130461,500.00,Redacted information - included personal information ,M00745,2,2015
Allerdale Borough Council,20111,Third Party Payments,Grants to Voluntary Organisation,Voluntary Organisations,19/05/2015,130462,"16,250.00",CITIZENS ADVICE BUREAU,A01181,2,2015
Allerdale Borough Council,20111,Third Party Payments,Grants to Voluntary Organisation,Voluntary Organisations,19/05/2015,130463,"17,241.50",CUMBRIA LAW CENTRE,A01446,2,2015
Allerdale Borough Council,20111,Third Party Payments,Grants to Voluntary Organisation,Voluntary Organisations,19/05/2015,130464,"7,500.00",ALLERDALE DISABILITY ASSOC,M00270,2,2015
Allerdale Borough Council,20111,Third Party Payments,Grants to Voluntary Organisation,Voluntary Organisations,19/05/2015,130465,"7,500.00",WEST CUMBRIA TRADES HALL,M00271,2,2015
Allerdale Borough Council,15101,Supplies & Services,Elections,Equipment Costs,15/05/2015,130466,56.79,Redacted information - included personal information ,M00746,2,2015
Allerdale Borough Council,54105,Capital Expenditure,Disabled Facilities Grants,Grants  Private Individuals (Capital),20/05/2015,130467,"2,745.31",JACOBS STOBBARTS LIMITED,C00139,2,2015
Allerdale Borough Council,10110,Employee Costs,Senior Mgt/PA Pay Group,Salary Sacrifice,06/05/2015,130468,624.87,TUSKERDIRECT LTD,A02186,2,2015
Allerdale Borough Council,10110,Employee Costs,Planning and Development Pay Group,Salary Sacrifice,01/05/2015,130469,349.11,TUSKERDIRECT LTD,A02186,2,2015
Allerdale Borough Council,12408,Premises,Corporate Property Maintenance,Water & Sewage,05/05/2015,130470,25.82,UNITED UTILITIES,X00011,2,2015
Allerdale Borough Council,12408,Premises,Corporate Property Maintenance,Water & Sewage,08/05/2015,130471,12.15,UNITED UTILITIES,X00011,2,2015
Allerdale Borough Council,12402,Premises,Corporate Property Maintenance,Electricity,12/05/2015,130472,44.51,SOUTHERN ELECTRIC,X00018,2,2015
Allerdale Borough Council,12408,Premises,Corporate Property Maintenance,Water & Sewage,13/05/2015,130473,5.74,UNITED UTILITIES,X00011,2,2015
Allerdale Borough Council,10401,Employee Costs,Elections,Agency Staff Costs,08/04/2015,130474,"1,963.00",SELLICK PARTNERSHIP,A01993,2,2015
Allerdale Borough Council,10401,Employee Costs,Elections,Agency Staff Costs,21/04/2015,130475,"1,984.50",SELLICK PARTNERSHIP,A01993,2,2015
Allerdale Borough Council,10401,Employee Costs,Elections,Agency Staff Costs,02/03/2015,130476,"1,417.00",SELLICK PARTNERSHIP,A01993,2,2015
Allerdale Borough Council,10401,Employee Costs,Elections,Agency Staff Costs,06/03/2015,130477,"1,413.00",SELLICK PARTNERSHIP,A01993,2,2015
Allerdale Borough Council,21150,Transfer Payments,Festivals & Events,General Grants,19/05/2015,130478,70.00,CUMBRIA COUNCIL FOR VOLUNTARY SERVICE EWANRIGG LOCAL TRUST,M00685,2,2015
Allerdale Borough Council,81608,Balance Sheet,General Fund,Legal Provisions,20/05/2015,130479,"3,856.67",Redacted information - included personal information ,M00690,2,2015
Allerdale Borough Council,15502,Supplies & Services,Legal Services,Land Registry Fees,20/05/2015,130480,51.00,HM LAND REGISTRY,A00505,2,2015
Allerdale Borough Council,15502,Supplies & Services,Legal Services,Land Registry Fees,20/05/2015,130481,12.00,HM LAND REGISTRY ,A00505,2,2015
Allerdale Borough Council,14105,Transport,Parking Services Pay Group,"Fuel, Lubricants & Consumables",06/05/2015,130482,172.45,BP OIL UK LTD,X00022,2,2015
Allerdale Borough Council,14105,Transport,Parking Services Pay Group,"Fuel, Lubricants & Consumables",12/05/2015,130484,480.40,BP OIL UK LTD ,X00022,2,2015
Allerdale Borough Council,15505,Supplies & Services,Museums,Licences,02/03/2015,130485,240.00,MODES USER ASSOCIATION,A00796,2,2015
Allerdale Borough Council,15514,Supplies & Services,Carnegie Theatre,Public Entertainment,17/04/2015,130486,"2,847.27",SWEENEY ENTERTAINMENTS,A01774,2,2015
Allerdale Borough Council,12101,Premises,Public Convenience Cleaning,External Maintenance & Decoration,15/05/2015,130487,110.00,UNBLOCK CUMBRIA LTD,C00005,2,2015
Allerdale Borough Council,15301,Supplies & Services,Parking Services Pay Group,Uniforms,15/05/2015,130488,391.20,KELTIC,A00017,2,2015
Allerdale Borough Council,15508,Supplies & Services,Environmental Initiatives,Subscriptions,15/05/2015,130489,"4,495.00",KEEP BRITAIN TIDY,A01034,2,2015
Allerdale Borough Council,15101,Supplies & Services,Homelessness,Equipment Costs,15/05/2015,130490,133.32,ARGOS BUSINESS SOLUTION-STORE COLLECTION,A00411,2,2015
Allerdale Borough Council,10401,Employee Costs,Head of Governance,Agency Staff Costs,18/05/2015,130491,937.98,Redacted information - included personal information ,A01856,2,2015
Allerdale Borough Council,10401,Employee Costs,Head of Governance,Agency Staff Costs,18/05/2015,130492,945.00,Redacted information - included personal information ,A01856,2,2015
Allerdale Borough Council,10401,Employee Costs,Head of Governance,Agency Staff Costs,18/05/2015,130493,"1,008.00",Redacted information - included personal information ,A01856,2,2015
Allerdale Borough Council,10401,Employee Costs,Head of Governance,Agency Staff Costs,27/04/2015,130494,"1,281.00",Redacted information - included personal information ,A01856,2,2015
Allerdale Borough Council,15101,Supplies & Services,Trade Waste,Equipment Costs,06/05/2015,130495,"9,200.00",EGBERT H TAYLOR & COMPANY LTD,A01706,2,2015
Allerdale Borough Council,10601,Employee Costs,Solway Coast AONB Core Funding,External Courses & Seminar Fees,25/02/2015,130496,10.00,CUMBRIA COUNCIL FOR VOLUNTARY SERVICES,A01838,2,2015
Allerdale Borough Council,15501,Supplies & Services,Estates,Consultants Fees,19/05/2015,130497,"1,193.63",HAYS SPECIALIST RECRUITMENT LTD,A00280,2,2015
Allerdale Borough Council,15811,Supplies & Services,IT Services,Software Maintenance,01/05/2015,130498,264.99,SAGE (UK) LTD,A01911,2,2015
Allerdale Borough Council,15506,Supplies & Services,KMAG Enhancement Activity,Professional Services,21/05/2015,130499,300.00,BPW FIRE SAFETY,A02124,2,2015
Allerdale Borough Council,51101,Capital Expenditure,New Leisure Facility,External Contractor Payments (Capital),11/05/2015,130500,"548,153.00",WILLMOTT DIXON CAPITAL WORKS LTD,C00127,2,2015
Allerdale Borough Council,15403,Supplies & Services,Anti Poverty,Publications and Periodicals,23/03/2015,130501,31.99,CHILD POVERTY ACTION GROUP,A00866,2,2015
Allerdale Borough Council,15508,Supplies & Services,Corporate Management,Subscriptions,01/04/2015,130502,"9,413.16",LOCAL GOVERNMENT ASSOCIATION,A00686,2,2015
Allerdale Borough Council,10401,Employee Costs,Elections,Agency Staff Costs,29/04/2015,130503,"2,600.50",SELLICK PARTNERSHIP,A01993,2,2015
Allerdale Borough Council,15202,Supplies & Services,Carnegie Theatre,Bar Provision,30/04/2015,130504,11.84,SOLWAY HEATERS LTD,A00305,2,2015
Allerdale Borough Council,10100,Employee Costs,Customer Services Pay Group,Budget-Salaries,29/04/2015,130505,483.22,ADECCO RECRUITMENT,A00188,2,2015
Allerdale Borough Council,16150,Supplies & Services,Solway Wetlands Project,General Promotions,21/02/2015,130506,40.00,CUMBRIAN NEWSPAPERS LIMITED,A00869,2,2015
Allerdale Borough Council,16150,Supplies & Services,Solway Wetlands Project,General Promotions,28/02/2015,130507,120.00,CUMBRIAN NEWSPAPERS LIMITED,A00869,2,2015
Allerdale Borough Council,10250,Employee Costs,Training,General-Employee Related Expenses,24/04/2015,130508,146.62,ENTERPRISE RENT A CAR,A01367,2,2015
Allerdale Borough Council,10401,Employee Costs,Elections,Agency Staff Costs,06/05/2015,130509,"2,834.00",SELLICK PARTNERSHIP,A01993,2,2015
Allerdale Borough Council,15202,Supplies & Services,Carnegie Theatre,Bar Provision,13/03/2015,130510,6.97,SOLWAY HEATERS LTD,A00305,2,2015
Allerdale Borough Council,14101,Transport,Mayoral Services,Vehicle Leasing,21/02/2015,130511,20.00,ACE TAXIS,A01927,2,2015
Allerdale Borough Council,14101,Transport,Mayoral Services,Vehicle Leasing,17/04/2015,130512,170.00,ACE TAXIS,A01927,2,2015
Allerdale Borough Council,14101,Transport,Mayoral Services,Vehicle Leasing,10/04/2015,130513,40.00,ACE TAXIS,A01927,2,2015
Allerdale Borough Council,14101,Transport,Mayoral Services,Vehicle Leasing,09/04/2015,130514,240.00,ACE TAXIS,A01927,2,2015
Allerdale Borough Council,15403,Supplies & Services,Anti Poverty,Publications and Periodicals,27/04/2015,130515,118.00,CHILD POVERTY ACTION GROUP,A00866,2,2015
Allerdale Borough Council,10401,Employee Costs,Elections,Agency Staff Costs,11/05/2015,130516,"2,725.50",SELLICK PARTNERSHIP,A01993,2,2015
Allerdale Borough Council,15506,Supplies & Services,Asset Mgt & Capital Accounting System,Professional Services,23/04/2015,130517,"2,250.00",CIPFA BUSINESS LIMITED,A01791,2,2015
Allerdale Borough Council,15506,Supplies & Services,Asset Mgt & Capital Accounting System,Professional Services,23/04/2015,130518,"1,200.00",CIPFA BUSINESS LIMITED,A01791,2,2015
Allerdale Borough Council,15101,Supplies & Services,Corporate Property Maintenance,Equipment Costs,07/05/2015,130519,16.79,ARCO LIMITED - CARLISLE,A01448,2,2015
Allerdale Borough Council,15101,Supplies & Services,Coastal Protection and Inland Flooding,Equipment Costs,07/05/2015,130520,41.92,ARCO LIMITED - CARLISLE,A01448,2,2015
Allerdale Borough Council,15500,Supplies & Services,Disposal of Allerdale Sites,Budget-Services,15/05/2015,130521,300.00,CARIGIET COWEN,A01190,2,2015
Allerdale Borough Council,15506,Supplies & Services,Environmental Protection,Professional Services,30/04/2015,130522,75.00,CUMBRIA WASTE MANAGEMENT LTD,A01304,2,2015
Allerdale Borough Council,15602,Supplies & Services,Electoral Registration,Business Reply Licences,07/04/2015,130523,41.00,ROYAL MAIL LETTERS,X00021,2,2015
Allerdale Borough Council,15602,Supplies & Services,Elections,Business Reply Licences,03/04/2015,130524,"22,190.43",ROYAL MAIL LETTERS,X00021,2,2015
Allerdale Borough Council,15602,Supplies & Services,Elections,Business Reply Licences,24/04/2015,130525,"12,943.40",ROYAL MAIL LETTERS,X00021,2,2015
Allerdale Borough Council,15602,Supplies & Services,Elections,Business Reply Licences,29/04/2015,130526,"4,655.20",ROYAL MAIL LETTERS,X00021,2,2015
Allerdale Borough Council,15602,Supplies & Services,Human Resources Pay Group,Business Reply Licences,11/04/2015,130527,50.00,ROYAL MAIL LETTERS,X00021,2,2015
Allerdale Borough Council,15604,Supplies & Services,Document Management Pay Group,Franking Machine refills,13/05/2015,130528,"3,579.00",ROYAL MAIL LETTERS,X00021,2,2015
Allerdale Borough Council,15804,Supplies & Services,IT Services,Computer Data Lines B.T.,13/05/2015,130529,999.00,VODAFONE (PREV CABLE & WIRELESS),A00934,2,2015
Allerdale Borough Council,12302,Premises,Solway Coast AONB Core Funding,Building Cleaning,30/04/2015,130530,64.50,ORIAN SOLUTIONS LTD,A01814,2,2015
Allerdale Borough Council,15506,Supplies & Services,Legal Services,Professional Services,14/04/2015,130531,408.33,KINGS CHAMBERS,A00348,2,2015
Allerdale Borough Council,15101,Supplies & Services,Licensing Service,Equipment Costs,30/04/2015,130532,99.53,MISCO,A00125,2,2015
Allerdale Borough Council,15514,Supplies & Services,Carnegie Theatre,Public Entertainment,11/05/2015,130533,"3,050.00",OFF THE KERB PRODUCTIONS,A02180,2,2015
Allerdale Borough Council,15102,Supplies & Services,Off-street - Owned,Equipment Repair & Maintenance,11/05/2015,130534,379.62,METRIC GROUP LTD,A00568,2,2015
Allerdale Borough Council,15505,Supplies & Services,Planning and Development,Licences,30/04/2015,130535,59.01,CENTREMAPS,A00512,2,2015
Allerdale Borough Council,10202,Employee Costs,Human Resources Pay Group,Medical Screening,11/05/2015,130536,424.36,WELLWORK LTD,A00029,2,2015
Allerdale Borough Council,12305,Premises,Corporate Property Maintenance,Inspections and Services,05/05/2015,130537,208.50,TYCO FIRE&INTEGRATED SOLUTIONS,A00773,2,2015
Allerdale Borough Council,12203,Premises,Carnegie Trust Contribution,Plumbing and Heating Maintenance,14/05/2015,130538,907.83,ENGINEERING (BARB) PIPEWORKS,A00903,2,2015
Allerdale Borough Council,10202,Employee Costs,Human Resources Pay Group,Medical Screening,14/05/2015,130539,28.75,WELLWORK LTD,A00029,2,2015
Allerdale Borough Council,12305,Premises,Corporate Property Maintenance,Inspections and Services,12/05/2015,130540,280.00,GILGEN DOOR SYSTEMS UK LTD,A00542,2,2015
Allerdale Borough Council,15501,Supplies & Services,Planning and Development,Consultants Fees,19/05/2015,130541,298.20,CAPITA (TREE/HEDGEROWS),A00683,2,2015
Allerdale Borough Council,12403,Premises,Homelessness,Gas,02/05/2015,130542,66.00,MEPOS LIMITED,A01286,2,2015
Allerdale Borough Council,10401,Employee Costs,Building Control - Chargeable,Agency Staff Costs,22/04/2015,130543,180.00,THE OYSTER PARTNERSHIP LTD,C00118,2,2015
Allerdale Borough Council,16150,Supplies & Services,"The Hub, Workington Town Centre",General Promotions,13/05/2015,130544,"1,127.00",BROXAP LIMITED,C00048,2,2015
Allerdale Borough Council,15501,Supplies & Services,Environmental Initiatives,Consultants Fees,12/05/2015,130545,550.00,WYG PLANNING & DESIGN,A00682,2,2015
Allerdale Borough Council,12202,Premises,Corporate Property Maintenance,Electrical Repairs and Service,11/05/2015,130546,135.51,EDMUNDSON ELECTRICAL LTD,A00304,2,2015
Allerdale Borough Council,12202,Premises,Corporate Property Maintenance,Electrical Repairs and Service,11/05/2015,130547,82.20,EDMUNDSON ELECTRICAL LTD,A00304,2,2015
Allerdale Borough Council,10401,Employee Costs,IT - New Initiatives,Agency Staff Costs,04/05/2015,130548,975.00,HAYS SPECIALIST RECRUITMENT LTD,A00280,2,2015
Allerdale Borough Council,10401,Employee Costs,IT - New Initiatives,Agency Staff Costs,11/05/2015,130549,975.00,HAYS SPECIALIST RECRUITMENT LTD,A00280,2,2015
Allerdale Borough Council,15101,Supplies & Services,Corporate Property Maintenance,Equipment Costs,15/05/2015,130550,269.82,AST SIGNS LIMITED,A01473,2,2015
Allerdale Borough Council,15808,Supplies & Services,IT Services,Computer Consumables,19/05/2015,130551,220.00,PMD MAGNETICS,A01086,2,2015
Allerdale Borough Council,15500,Supplies & Services,Shared Revs & Bens IT Costs,Budget-Services,01/04/2015,130552,"7,985.00",CARLISLE CITY COUNCIL,A00161,2,2015
Allerdale Borough Council,15501,Supplies & Services,Homelessness,Consultants Fees,15/05/2015,130553,35.00,Redacted information - included personal information ,A00826,2,2015
Allerdale Borough Council,10401,Employee Costs,IT - New Initiatives,Agency Staff Costs,21/04/2015,130554,975.00,HAYS SPECIALIST RECRUITMENT LTD,A00280,2,2015
Allerdale Borough Council,10401,Employee Costs,IT - New Initiatives,Agency Staff Costs,23/04/2015,130555,975.00,HAYS SPECIALIST RECRUITMENT LTD,A00280,2,2015
Allerdale Borough Council,12201,Premises,Corporate Property Maintenance,Internal Maintenance,26/05/2015,130556,210.00,CUMBRIA BLINDS,A00183,2,2015
Allerdale Borough Council,15514,Supplies & Services,Mayor's Fund,Public Entertainment,20/05/2015,130557,125.00,JIM DAVIS PHOTOGRAPHY,A00627,2,2015
Allerdale Borough Council,15516,Supplies & Services,Insurances,Insurance Services,11/05/2015,130558,"74,202.19",BLUEFIN INSURANCE SERVICES LTD,A01716,2,2015
Allerdale Borough Council,15808,Supplies & Services,Multi-functional Printers,Computer Consumables,15/05/2015,130559,199.00,ANTALIS LIMITED,A00122,2,2015
Allerdale Borough Council,12409,Premises,Insurances,Buildings and Contents Insurance,15/05/2015,130560,"1,777.50",BLUEFIN INSURANCE SERVICES LTD,A01716,2,2015
Allerdale Borough Council,10801,Employee Costs,Insurances,Insurance of Employees,06/05/2015,130561,"1,049.03",BLUEFIN INSURANCE SERVICES LTD,A01716,2,2015
Allerdale Borough Council,15516,Supplies & Services,Insurances,Insurance Services,06/05/2015,130562,"1,325.00",BLUEFIN INSURANCE SERVICES LTD,A01716,2,2015
Allerdale Borough Council,12409,Premises,Insurances,Buildings and Contents Insurance,14/05/2015,130563,"6,957.47",BLUEFIN INSURANCE SERVICES LTD,A01716,2,2015
Allerdale Borough Council,14103,Transport,Insurances,Insurance Council Vehicles,06/05/2015,130564,"9,275.53",BLUEFIN INSURANCE SERVICES LTD,A01716,2,2015
Allerdale Borough Council,15802,Supplies & Services,IT Services,Hardware Maintenance,14/05/2015,130565,"1,140.00",PARALOGIC LTD,A00102,2,2015
Allerdale Borough Council,15402,Supplies & Services,Customer Services Pay Group,Photocopier Charges,08/05/2015,130566,12.80,RICOH UK LTD,A00037,2,2015
Allerdale Borough Council,14101,Transport,Shared IT Services Pay Group,Vehicle Leasing,12/06/2015,130567,199.00,ARNOLD CLARK AUTOMOBILES LTD,A01551,2,2015
Allerdale Borough Council,15603,Supplies & Services,Document Management Pay Group,Franking Machine Costs,25/02/2015,130568,216.32,FRANCOTYP POSTALIA LTD,A02187,2,2015
Allerdale Borough Council,15810,Supplies & Services,IT Services,Software Licences,18/05/2015,130569,"2,370.00",HALAROSE LIMITED,A00012,2,2015
Allerdale Borough Council,15603,Supplies & Services,Document Management Pay Group,Franking Machine Costs,25/02/2015,130570,594.88,FRANCOTYP POSTALIA LTD,A02187,2,2015
Allerdale Borough Council,15603,Supplies & Services,Document Management Pay Group,Franking Machine Costs,25/02/2015,130571,162.24,FRANCOTYP POSTALIA LTD,A02187,2,2015
Allerdale Borough Council,16150,Supplies & Services,Solway AONB Other Projects,General Promotions,19/05/2015,130572,120.00,WEST HOUSE,A02020,2,2015
Allerdale Borough Council,15509,Supplies & Services,Elections,Election Costs,29/04/2015,130573,589.06,SHAW & SONS LTD,A00025,2,2015
Allerdale Borough Council,15904,Supplies & Services,Members Services,Training,11/05/2015,130574,41.00,K&R BADGES LIMITED,A01328,2,2015
Allerdale Borough Council,15904,Supplies & Services,Members Services,Training,13/05/2015,130575,3.50,K&R BADGES LIMITED,A01328,2,2015
Allerdale Borough Council,15509,Supplies & Services,Elections,Election Costs,21/05/2015,130576,40.00,GREENWICH LEISURE LTD (PREV CARLISLE LEISURE),A00136,2,2015
Allerdale Borough Council,15904,Supplies & Services,Members Services,Training,15/05/2015,130577,217.00,FIRPRESS PRINTERS,A00063,2,2015
Allerdale Borough Council,15904,Supplies & Services,Members Services,Training,13/05/2015,130578,424.00,MIKE TAYLOR PRINTING SERVICES,A02002,2,2015
Allerdale Borough Council,12408,Premises,Carnegie Trust Contribution,Water & Sewage,02/05/2015,130579,581.13,UNITED UTILITIES ,X00011,2,2015
Allerdale Borough Council,12408,Premises,Corporate Property Maintenance,Water & Sewage,14/05/2015,130580,13.53,UNITED UTILITIES,X00011,2,2015
Allerdale Borough Council,12402,Premises,Car Parks Inspection & Maintenance,Electricity,15/05/2015,130581,308.36,N POWER ,X00015,2,2015
Allerdale Borough Council,12402,Premises,Car Parks Inspection & Maintenance,Electricity,15/05/2015,130582,82.46,N POWER,X00015,2,2015
Allerdale Borough Council,12408,Premises,Corporate Property Maintenance,Water & Sewage,14/05/2015,130583,110.56,UNITED UTILITIES,X00011,2,2015
Allerdale Borough Council,12201,Premises,Corporate Property Maintenance,Internal Maintenance,26/05/2015,130584,623.00,CUMBRIA BLINDS,A00183,2,2015
Allerdale Borough Council,12201,Premises,Corporate Property Maintenance,Internal Maintenance,26/05/2015,130585,-623.00,CUMBRIA BLINDS,A00183,2,2015
Allerdale Borough Council,12408,Premises,Public Convenience Cleaning,Water & Sewage,19/05/2015,130586,202.31,UNITED UTILITIES,X00011,2,2015
Allerdale Borough Council,12408,Premises,Corporate Property Maintenance,Water & Sewage,19/05/2015,130587,89.78,UNITED UTILITIES,X00011,2,2015
Allerdale Borough Council,12408,Premises,Corporate Property Maintenance,Water & Sewage,19/05/2015,130588,11.71,UNITED UTILITIES,X00011,2,2015
Allerdale Borough Council,12408,Premises,Public Convenience Cleaning,Water & Sewage,17/05/2015,130589,69.58,UNITED UTILITIES,X00011,2,2015
Allerdale Borough Council,15802,Supplies & Services,IT Services,Hardware Maintenance,30/04/2015,130592,"4,262.67",INTRINSIC TECHNOLOGY LTD,A00902,2,2015
Allerdale Borough Council,15101,Supplies & Services,Corporate Property Maintenance,Equipment Costs,09/05/2015,130593,156.40,TELK LTD,A01670,2,2015
Allerdale Borough Council,15101,Supplies & Services,Public Building Cleaning,Equipment Costs,05/05/2015,130594,87.37,DERWENT & SOLWAY ,A00219,2,2015
Allerdale Borough Council,12409,Premises,Tenanted Properties,Buildings and Contents Insurance,05/05/2015,130595,87.37,DERWENT & SOLWAY ,A00219,2,2015
Allerdale Borough Council,12409,Premises,Tenanted Properties,Buildings and Contents Insurance,05/05/2015,130596,174.74,DERWENT & SOLWAY ,A00219,2,2015
Allerdale Borough Council,12409,Premises,Tenanted Properties,Buildings and Contents Insurance,05/05/2015,130597,87.37,DERWENT & SOLWAY ,A00219,2,2015
Allerdale Borough Council,14104,Transport,Parking Services Pay Group,Repairs & Maintenance,15/05/2015,130598,74.00,FCC ENVIRONMENT SERVICES (FOCSA),A00085,2,2015
Allerdale Borough Council,15101,Supplies & Services,Public Building Cleaning,Equipment Costs,20/05/2015,130599,"1,001.86",INSTOCK (CHANDLERS),A00050,2,2015
Allerdale Borough Council,10401,Employee Costs,IT - New Initiatives,Agency Staff Costs,18/05/2015,130600,"1,137.50",HAYS SPECIALIST RECRUITMENT LTD,A00280,2,2015
Allerdale Borough Council,15101,Supplies & Services,Public Building Cleaning,Equipment Costs,22/05/2015,130601,62.26,INSTOCK (CHANDLERS),A00050,2,2015
Allerdale Borough Council,15502,Supplies & Services,Legal Services,Land Registry Fees,26/05/2015,130602,27.00,HM LAND REGISTRY,A00505,2,2015
Allerdale Borough Council,10203,Employee Costs,Chief Executive,Subsistence Allowance,15/05/2015,130603,4.50,BARCLAYCARD COMMERCIAL,X00207,2,2015
Allerdale Borough Council,12402,Premises,Footways,Electricity,15/05/2015,130604,"4,859.76",N POWER,X00015,2,2015
Allerdale Borough Council,12408,Premises,Corporate Property Maintenance,Water & Sewage,16/05/2015,130605,"1,421.79",UNITED UTILITIES ,X00011,2,2015
Allerdale Borough Council,15509,Supplies & Services,Elections,Election Costs,22/05/2015,130606,"1,500.00",EP ELECTIONS,M00747,2,2015
Allerdale Borough Council,21150,Transfer Payments,Festivals & Events,General Grants,26/05/2015,130607,"1,000.00",ROTARY CLUB OF COCKERMOUTH,M00748,2,2015
Allerdale Borough Council,15505,Supplies & Services,Carnegie Theatre,Licences,26/03/2015,130608,627.67,PERFORMING RIGHTS SOCIETY,A00400,2,2015
Allerdale Borough Council,15505,Supplies & Services,Carnegie Theatre,Licences,26/03/2015,130609,653.32,PERFORMING RIGHTS SOCIETY,A00400,2,2015
Allerdale Borough Council,15505,Supplies & Services,Carnegie Theatre,Licences,01/04/2015,130610,"1,613.66",PERFORMING RIGHTS SOCIETY,A00400,2,2015
Allerdale Borough Council,15505,Supplies & Services,Carnegie Theatre,Licences,27/04/2015,130611,678.27,PERFORMING RIGHTS SOCIETY,A00400,2,2015
Allerdale Borough Council,10601,Employee Costs,Localities & Partnerships,External Courses & Seminar Fees,24/04/2015,130612,20.00,CUMBRIA COUNCIL FOR VOLUNTARY SERVICES,A01838,2,2015
Allerdale Borough Council,12201,Premises,Carnegie Trust Contribution,Internal Maintenance,19/05/2015,130613,"1,554.00",Redacted information - included personal information ,C00008,2,2015
Allerdale Borough Council,16150,Supplies & Services,Solway Wetlands Project,General Promotions,19/05/2015,130614,"2,750.00",NORTH OF ENGLAND CIVIC TRUST,A02178,2,2015
Allerdale Borough Council,16150,Supplies & Services,Solway Wetlands Project,General Promotions,19/05/2015,130615,"4,018.00",KIRKBRIDE PRIMARY SCHOOL,A01225,2,2015
Allerdale Borough Council,15514,Supplies & Services,Carnegie Theatre,Public Entertainment,16/06/2014,130616,550.00,JUST FAIR LAUGHS,M00749,2,2015
Allerdale Borough Council,15514,Supplies & Services,Carnegie Theatre,Public Entertainment,21/04/2015,130617,-625.00,VALUE ADDED TALENT,A02169,2,2015
Allerdale Borough Council,15514,Supplies & Services,Carnegie Theatre,Public Entertainment,21/04/2015,130618,750.00,VALUE ADDED TALENT,A02169,2,2015
Allerdale Borough Council,10203,Employee Costs,Director of Operations,Subsistence Allowance,15/05/2015,130620,24.00,BARCLAYCARD COMMERCIAL,X00207,2,2015
Allerdale Borough Council,15405,Supplies & Services,Members Services,Use of External Printers,26/05/2015,130621,12.00,FIRPRESS PRINTERS,A00063,2,2015
Allerdale Borough Council,15101,Supplies & Services,Footways,Equipment Costs,20/05/2015,130622,770.50,MAIN STREET SIGNS LIMITED,A00292,2,2015
Allerdale Borough Council,15506,Supplies & Services,Environmental Protection,Professional Services,21/05/2015,130623,"2,160.00",ENVIRONMENTAL SCIENTIFICS GROUP,A00896,2,2015
Allerdale Borough Council,15509,Supplies & Services,Elections,Election Costs,20/05/2015,130624,"1,342.00",GREENWICH LEISURE LTD (PREV CARLISLE LEISURE),A00136,2,2015
Allerdale Borough Council,16101,Supplies & Services,Planning and Development,Statutory Notices,20/05/2015,130625,303.19,CUMBRIA CC - 3C STUDIO,A00070,2,2015
Allerdale Borough Council,15404,Supplies & Services,Carnegie Theatre,Reference Materials,29/04/2015,130626,77.50,FIRPRESS PRINTERS,A00063,2,2015
Allerdale Borough Council,15501,Supplies & Services,Estates,Consultants Fees,26/05/2015,130627,"1,200.00",HAYS SPECIALIST RECRUITMENT LTD,A00280,2,2015
Allerdale Borough Council,12202,Premises,Carnegie Trust Contribution,Electrical Repairs and Service,22/05/2015,130628,"2,683.00",J & J ELECTRICAL (CUMBRIA) LTD,C00038,2,2015
Allerdale Borough Council,10401,Employee Costs,IT - New Initiatives,Agency Staff Costs,22/05/2015,130629,"1,137.50",HAYS SPECIALIST RECRUITMENT LTD,A00280,2,2015
Allerdale Borough Council,16301,Supplies & Services,KMAG Enhancement Activity,Reimbursement,19/05/2015,130630,148.50,KESWICK MUSEUM & ART GALLERY,A00337,2,2015
Allerdale Borough Council,15103,Supplies & Services,KMAG Enhancement Activity,Purchase of Materials,25/03/2015,130631,42.09,KESWICK MUSEUM & ART GALLERY,A00337,2,2015
Allerdale Borough Council,15201,Supplies & Services,Chief Executive,Entertainment Of Visitors,15/05/2015,130632,"1,331.50",BARCLAYCARD COMMERCIAL,X00207,2,2015
Allerdale Borough Council,75103,Holding and Control Accounts,Payroll Suspense Account,PAYROLL May 15 Travel & Subsistence  ,,,"12,054.87",INLAND REVENUE,X00038,2,2015
